Workbook

Sheet FOGLIO CALCOLI
C1: FASE 1 - PROGETTO DI PREVENZIONE INCENDI | Q1: FASE 2 - ASSISTENZA D.L. e SCIA
C2: PARAMETRI PROGETTO | Q2: Tipo Incarico e attività | S2: PARAMETRI SCIA PARZIALI
A3: Attività | B3: Descrizione | C3: Parametro Principale | D3: Un.Mis | E3: Valore [S] | F3: Parametro X | G3: Valore [X] | H3: Parametro Y | I3: Valore [Y] | J3: Attività Normata? [A] | K3: Richiesta di Deroga [D] | L3: Soluzioni alternative [I] | M3: Numero di soluzioni | N3: Soluzione/i con FSE? | O3: Numero di scenari FSE | P3: hi | Q3: Incarico Completo | R3: Categoria Attività | S3: B.1 Direzione Lavori | T3: B2 [n] Tabellare | U3: B2 [n] Analitico | V3: B3 [n] Impianti | W3: B4 SCIA | X3: B.5 Non Aggravio | Y3: Hj | AF3: rif.RigaIn | AG3: Rif.RigaFin | AH3: Ind.Sottotipo | AI3: Fatt. Corr | AJ3: Par.Agg1 | AK3: Par.X | AL3: Par.Agg2 | AM3: Par.Y | AN3: Limite | AO3: Eccedenza | AP3: PAR X | AQ3: PAR Y | AR3: Par. Princ | AS3: PER ATT. 68
A4: 75 | B4: =+VLOOKUP($A4,TabAtt,2,FALSE) -> Autorimesse pubbliche e private, parcheggi pluriplano e meccanizzati di superficie complessiva superiore a 300 m2; locali adibiti al ricovero di natanti ed aeromobili di superficie superiore a 500 m2; depositi di mezzi rotabili al chiuso (treni, tram ecc.) di superficie superiore a 1000 m2 | C4: Superficie | D4: =+VLOOKUP(C4,INDIRECT(ADDRESS(AF4,4,1,,"PARAMETRI ATTIVITA") & ":" & +ADDRESS(AF4+5,12,1,,)),2,FALSE) -> m² | F4: Num. di Piani Interrati INSERIRE VALORE | H4: Automobili | J4: DM 2015 | K4: NO | L4: NO | N4: NO | P4: =+PARHF1 -> 0 | Q4: SI | R4: A | Y4: =+PARHF2 -> 0 | AF4: =+VLOOKUP($A4,TabAtt,3,FALSE) -> 107 | AG4: =+VLOOKUP($A4+1,TabAtt,3,FALSE)-AF4 -> 2 | AH4: =+ADDRESS(AF4,4,1,,"PARAMETRI ATTIVITA") -> 'PARAMETRI ATTIVITA'!$D$107 | AI4: =+IF(E10="",VLOOKUP(C4,INDIRECT(ADDRESS(AF4,4,1,,"PARAMETRI ATTIVITA") & ":" & +ADDRESS(AF4+5,12,1,,)),3,FALSE),E10) -> 6 | AJ4: =+ADDRESS(AF4,7,1,,"PARAMETRI ATTIVITA") -> 'PARAMETRI ATTIVITA'!$G$107 | AK4: =+IF(G8="",IF(AU4="F",IF(G4= 0, 1, IF((G4*AP4-AQ4)/G4<=1,1,(G4*AP4-AQ4)/G4)),AU4),G8) -> 1 | AL4: =+ADDRESS(AF4,9,1,,"PARAMETRI ATTIVITA") -> 'PARAMETRI ATTIVITA'!$I$107 | AM4: =+IF(I8="",IF(A4=68,1,VLOOKUP(H4,INDIRECT(ADDRESS(AF4,9,1,,"PARAMETRI ATTIVITA") & ":" & +ADDRESS(AF4+5,108,1,,)),2,FALSE)),I8) -> 1 | AN4: =+IF(E6="",VLOOKUP(C4,INDIRECT(ADDRESS(AF4,4,1,,"PARAMETRI ATTIVITA") & ":" & +ADDRESS(AF4+5,12,1,,)),8,FALSE),E6) -> 1000 | AO4: =+IF(E8="",VLOOKUP(C4,INDIRECT(ADDRESS(AF4,4,1,,"PARAMETRI ATTIVITA") & ":" & +ADDRESS(AF4+5,12,1,,)),9,FALSE),E8) -> 0.4 | AP4: =+IF(ISERROR(VLOOKUP($A4,TabAtt,13,FALSE))=FALSE,VLOOKUP($A4,TabAtt,13,FALSE),1) -> 2 | AQ4: =+IF(ISERROR(VLOOKUP($A4,TabAtt,14,FALSE))=FALSE,VLOOKUP($A4,TabAtt,14,FALSE),1) -> 0.8 | AR4: =+E4 -> 0 | AS4: =+IF(A4=68,G4*VLOOKUP(F4,INDIRECT(ADDRESS(AF4,7,1,,"PARAMETRI ATTIVITA") & ":" & +ADDRESS(AF4+5,8,1,,)),2,FALSE)+I4*VLOOKUP(H4,INDIRECT(ADDRESS(AF4,9,1,,"PARAMETRI ATTIVITA") & ":" & +ADDRESS(AF4+5,108,1,,)),2,FALSE),0) -> 0 | AU4: =+IF(A4=68,"1",VLOOKUP(F4,INDIRECT(ADDRESS(AF4,7,1,,"PARAMETRI ATTIVITA") & ":" & +ADDRESS(AF4+5,8,1,,)),2,FALSE)) -> F
D5: =+"Limite superiore ["& D4 & "] =" -> Limite superiore [m²] = | E5: =+INDIRECT(ADDRESS(AF4,11,1,,"PARAMETRI ATTIVITA")) -> 1000 | F5: Note = | G5: =+INDIRECT(ADDRESS(AF4,15,1,,"PARAMETRI ATTIVITA")) -> Y = (2P-1)/P [curva asintotica verso 2] | O5: =1+0.2*O4 -> 1 | Q5: =+IF(Q4="SI",Q8,0) -> 1 | R5: =+IF(R4="A",R8,1) -> 0.8 | S5: =+IF(S4="SI",1,0) -> 0 | T5: =+IF(S4="SI",1,0) -> 0 | U5: =+IF(S4="SI",1,0) -> 0 | W5: =+IF(W4="SI",1,0) -> 0 | X5: =+IF(X4="SI",IF(R4="A",0,1),0) -> 0 | Y5: =+IF(Y4="SI",Y8,0) -> 0 | AF5: =+VLOOKUP(C4,INDIRECT(ADDRESS(AF4,4,1,,"PARAMETRI ATTIVITA") & ":" & +ADDRESS(AF4+5,20,1,,)),16,FALSE) -> 107 | AH5: =+ADDRESS(AF4,4,1,,"PARAMETRI ATTIVITA") & ":" & +ADDRESS(AF4+5,12,1,,) -> 'PARAMETRI ATTIVITA'!$D$107:$L$112
D6: =+"Modifica Limite superiore ["& D4 & "] =" -> Modifica Limite superiore [m²] = | T6: =+IF(T4=0,0,1) -> 0 | U6: =+IF(U4=0,0,1) -> 0 | V6: =+IF(V4=0,0,1) -> 0
D7: =+"Calcolo dell'eccedenza dei ["& D4 & "] =" -> Calcolo dell'eccedenza dei [m²] = | E7: =+INDIRECT(ADDRESS(AF4,12,1,,"PARAMETRI ATTIVITA")) -> 0.4 | F7: Valore Parametro X = | G7: =+AK4 -> 1 | H7: Valore Parametro Y = | I7: =+AM4 -> 1 | Q7: K per Full | R7: K per A | S7: K per Ass. | T7: Tabellare | U7: Analitico | V7: k | W7: K SCIA | X7: K per NA | AH7: PARAMETRO G | AI7: =IF(AN4=0,+SQRT(AR4*AI4)*AK4*AM4,IF(AR4-AN4<0,+SQRT((AR4+AS4)*AI4)*AK4*AM4,SQRT((AN4+AS4+(AR4-AN4)*AO4)*AI4)*AK4*AM4)) -> 0 | AO7: =+(G4*AP4-AQ4)/G4 -> 
D8: Modifica Eccedenza = | F8: Modifica Par. X = | H8: Modifica Par. Y = | Q8: 1 | R8: 0.8 | S8: 0.5 | T8: =+IF(S4="SI",T9+3*SQRT(T4)+2*T4,T10+6*T4)*T6 -> 0 | U8: =+IF(S4="SI",U9+6*SQRT(U4)+2*U4,U10+10*U4)*U6 -> 0 | V8: =V9*V4 -> 0 | W8: 0.75 | X8: =+IF(S4="SI",X9,IF(Q4="SI",X9,X10)) -> 0.15 | AH8: Sottoinsiemi | AI8: =+PRODUCT(AI37:AL37) -> 1.5 | AK8: Alternative | AL8: =+IF(L4="SI",(1+0.05*M4),1) -> 1
D9: Fattore K applicato: | E9: =+AI4 -> 6 | S9: Con b.2 | T9: 4 | U9: 4 | V9: 30 | X9: 0.15 | AH9: hf1 | AI9: =+PARG*AI8*AL8*AL9 -> 0 | AK9: FSE | AL9: =++IF(L4="SI",IF(N4="SI",1.4*(1+O4*0.2),1),1) -> 1
D10: Modifica Fattore K : | S10: Senza b.2 | T10: 10 | U10: 10 | V10: 30 | X10: 0.25 | AF10: PARAMETRI SCIA | AH10: hF2 | AI10: =IF(Q4="NO",+SUM(AI12:AI16),R5*PARG+AI16) -> 0
AP11: =+ISERROR(VLOOKUP($A4,TabAtt,13,FALSE)) -> FALSE
AH12: B1 | AI12: =+S5*S8*PARG -> 0 | AJ12: =+IF(AI12>0,IF(SUM(AI13:AI16)>0,"B1 + ","B1 ="),"") ->  | AK12: =+IF(AI12>0,IF(SUM(AI13:AI16)>0,TEXT(AI12,"#0,0#") & " +",TEXT(AI12,"#0,0#") & "="),"") -> 
AH13: B2 | AI13: =+SUM(T8:U8) -> 0 | AJ13: =+IF(AI13>0,IF(SUM(AI14:AI16)>0,"B2 + ","B2 = "),"") ->  | AK13: =+IF(AI13>0,IF(SUM(AI14:AI16)>0,TEXT(AI13,"#0,0#") & " + ",TEXT(AI13,"#0,0#") & " ="),"") ->  | AL13: hj = Shjk | AM13: hi | AN13: =+ IF(Q5 = 1,IF(R5 = 0.8, AL15,AL14),AL13) & IF(AI16>0,IF(Q5=1," + B.5",""),"") & " =" -> hj = 1,8 x Sgi =
AH14: B3 | AI14: =+V8 -> 0 | AJ14: =+IF(AI14>0,IF(SUM(AI15:AI16)>0,"B3 + ","B3 = "),"") ->  | AK14: =+IF(AI14>0,IF(SUM(AI15:AI16)>0,TEXT(AI14,"#0,0#") & " + ",TEXT(AI14,"#0,0#") & " ="),"") ->  | AL14: hj = Sgi
A15: INSERISCI | C15: INSERISCI | E15: INSERISCI | F15: CONTROLLA | H15: CONTROLLA | J15: INDICARE | Q15: INDICARE SE VIENE | T15: INDICARE I PARAMETRI | AH15: B4 | AI15: =+W8*PARG*W5 -> 0 | AJ15: =+IF(AI15>0,IF(SUM(AI16)>0,"B4 + ","B4 = "),"") ->  | AK15: =+IF(AI15>0,IF(SUM(AI16)>0,TEXT(AI15,"#0,0#") & " + ",TEXT(AI15,"#0,0#") & " ="),"") ->  | AL15: hj = 1,8 x Sgi | AM15: Seq | AN15: =+ " [" & AH17 &"]^0,5" & TEXT(AI17,"#0.00") & TEXT(AJ17,"#0.00") & "= " & TEXT(PARG,"#.0,00") -> [x 6]^0,5 x 1 x1,00= 0,00
A16: ATTIVITA' | C16: PARAMETRO | E16: QUANTITA' | F16: SE ESISTE X | H16: SE ESISTE Y | J16: SE NORMATA, | Q16: AFFIDATO L'INCARICO | T16: PARZIALI DELLA FASE 2 | AH16: B5 | AI16: =+X8*X5*PARG -> 0 | AJ16: =+IF(AI16>0,IF(Q5=1,TEXT(PARG*R5,"#0,0#")&"+","B5 ="),"") ->  | AK16: =+IF(AI16>0,TEXT(AI16,"#0,0#") & " = ","") ->  | AM16: X
C17: PRINCIPALE | F17: SE X o Y NON ESISTONO SELEZIONA NON DEF. | J17: NON NORMATA, | Q17: COMPLETO E LA | T17: (SOLO SE INCARICO | AH17: =+IF(E5>0,IF((E4-E5)>0,"(" & E5 & " + "&E4-E5&" x " & E7 &")x" & E9,E4 & "x " & E9),E4) -> x 6 | AI17: =+IF(AS4>0," +(" & TEXT(G4,"#0") & " x 7)^0,5", IF(F4="non def.",""," x "&TEXT(G7,"#0"))) -> x 1 | AJ17: =+IF(AS4>0," +("&TEXT(I4,"#0")&" x 8)^0,5",IF(H4="non def.","x 1"," x"&TEXT(I7,"#0,00"))) -> x1,00 | AM17: Y
J18: O SI APPLICA IL D.M. 2015, | Q18: CATEGORIA | T18: NON COMPLETO)
B20: Parametro G= | C20: =+PARG -> 0 | F20: =+ " [" & AH17 &"]^0,5" & TEXT(AI17,"#0.00") & TEXT(AJ17,"#0.00") & "= " & TEXT(PARG,"#.0,00") -> [x 6]^0,5 x 1 x1,00= 0,00 | Q20: TOTALE FASE 1 | R20: =10+PARHF1 -> 10 | T20: Ore Equivalenti | AF20: SI | AG20: 1 | AH20: =+IF($Q$4="SI","N.D.","SI") -> N.D. | AJ20: A
B21: Parametro Fase 1 hi = | C21: =+PARHF1 -> 0 | F21: =+TEXT(PARG,"#0")&" x "&AI37&" x "&AJ37&" x "&AK37&" x "&AL37&" = "&TEXT(PARHF1,"0#,00") -> 0 x 1,5 x 1 x 1 x 1 = 0,00 | Q21: TOTALE FASE 2 | R21: =10+PARHF2 -> 10 | T21: Ore Equivalenti | AF21: NO | AG21: 0 | AH21: =+IF($Q$4="SI","N.D.","NO") -> N.D. | AJ21: B
B22: Parametro Fase 2 hj = | C22: =+PARHF2 -> 0 | E22: hj = 1,8 x Sgi = | F22: =AJ12& AJ13 & AJ14 & AJ15& AJ16 &AK12 & AK13&AK14&AK15&AK16 & TEXT(PARHF2,"#0,0#") -> 0,0 | Q22: TOTALE PER INCARICO COMPLETO | R22: =+IF(Q4="SI",R20+R21,"-") -> 20 | T22: Ore Equivalenti | AJ22: C
R23: (Totale ore equivalenti per una singola attività) | AF23: Gi | AG23: Seq | AH23: K
AG25: ="Gi = [SxK]^0,5 " & IF(AI17 = "",""," x X") & IF(AJ17="",""," x Y") & " = " & " [" & AH17 &"]^0,5" & TEXT(AI17,"#0.00") & TEXT(AJ17,"#0.00") & "= " & TEXT(P4,"#.0,00") -> Gi = [SxK]^0,5 x X x Y = [x 6]^0,5 x 1 x1,00= 0,00
C31: ="G = [SxK]^0,5 " & IF(AI17 = "",""," x X") & IF(AJ17="",""," x Y") & " = " & " [" & AH17 &"]^0,5" & TEXT(AI17,"#0.00") & TEXT(AJ17,"#0.00") & "= " & TEXT(P4,"#.0,00") -> G = [SxK]^0,5 x X x Y = [x 6]^0,5 x 1 x1,00= 0,00 | S31: 1070
AK32: nof | AL32: der | AM32: Alterna
AH33: Non Normato | AI33: 1.2 | AJ33: SI | AK33: 1.2 | AL33: 1.5 | AM33: 1.4
AH34: normata da regola tecnica prescrittiva | AI34: 1 | AJ34: NO | AK34: 1 | AL34: 1 | AM34: 1
S35: =(2*2-1)/2 -> 1.5 | AH35: DM 2015 | AI35: 1.5
C36: Parametro Attività | E36: NOF? | F36: DER? | G36: FSE? | H36: Costo Orario
C37: =+P4 -> 0 | E37: no | F37: no | G37: no | H37: 50 | AI37: =+VLOOKUP(J4,AH33:AI35,2,FALSE) -> 1.5 | AJ37: =+VLOOKUP(K4,$AJ$33:$AM$34,2,FALSE) -> 1 | AK37: 1 | AL37: =+VLOOKUP(G37,$AJ$33:$AM$34,4,FALSE) -> 1 | AM37: =+VLOOKUP(G37,$AJ$33:$AM$34,4,FALSE) -> 1
AI39: =+P4/(PRODUCT(AI37:AL37)) -> 0
B40: 7

Sheet ARCHIVIO (hidden)
A1: Attività | B1: Descrizione | C1: Parametro Principale | D1: Un.Mis | E1: Valore [S] | F1: Parametro X | G1: Valore [X] | H1: Parametro Y | I1: Valore [Y] | J1: Attività Normata? | K1: Totale Parametro | L1: Compenso Stimato Minimo Progettaz | M1: Compenso Stimato Massimo Progettaz | N1: Compenso atteso | O1: Incarico Completo | P1: Categoria Attività | Q1: B.2 Direzione Lavori | R1: B3 [n] Tabellare | S1: B3 [n] Analitico | T1: B4 [n] Impianti | U1: B5 SCIA | V1: B.6 Non Aggravio | W1: Totale | X1: Compenso Stimato Minimo SCIA | Y1: Compenso Stimato Massimo SCIA | Z1: Compenso atteso | AA1: NOTE
A2: 65 | B2: Locali di spettacolo e di trat [...] | C2: Superficie | D2: m² | E2: 56666 | F2: Persone INSERIRE VALORE | G2: 59 | H2: Non Def. | J2: DM 2015 | K2: 297.7399872 | N2: OK | O2: SI | P2: A | V2: NO | W2: 357.2879847 | X2: - | Y2: 357.2879847 | Z2: OK
A3: Attività | B3: Descrizione [...] | C3: Parametro Principale | D3: Un.Mis | E3: Valore [S] | F3: Parametro X | G3: Valore [X] | H3: Parametro Y | I3: Valore [Y] | J3: Attività Normata? [A] | K3: Richiesta di Deroga [D] | O3: Soluzioni alternative [I] | P3: Numero di soluzioni | Q3: Soluzione/i con FSE? | R3: Numero di scenari FSE | S3: hi | T3: Incarico Completo | U3: Categoria Attività | V3: B.1 Direzione Lavori | W3: B2 [n] Tabellare
A4: Attività | B4: Descrizione [...] | C4: Parametro Principale | D4: Un.Mis | E4: Valore [S] | F4: Parametro X | G4: Valore [X] | H4: Parametro Y | I4: Valore [Y] | J4: Attività Normata? [A] | K4: Richiesta di Deroga [D] | O4: Soluzioni alternative [I] | P4: Numero di soluzioni | Q4: Soluzione/i con FSE? | R4: Numero di scenari FSE | S4: hi | T4: Incarico Completo | U4: Categoria Attività | V4: B.1 Direzione Lavori | W4: B2 [n] Tabellare

Sheet PARAMETRI ATTIVITA (hidden)
A1: N. Att | B1: Descrizione | C1: RifRiga | D1: SottoTipo | E1: Un.Mis | F1: Fat. Corr (K) | G1: Descr. X | H1: X | I1: Descr. Y | J1: Y | K1: Limite | L1: Eccedenza | M1: Asintoto | N1: Partenza | T1: =SCARTO(INDIRETTO($X$2);0;0;$I$14) | Z1: x NEC | AA1: Y NEC | AB1: F | AE1: SEL Y | AH1: SEL X
A2: 1 | B2: Stabilimenti ed impianti ove si producono e/o impiegano gas infiammabili e/o comburenti con quantità globali in ciclo superiori a 25 Nm3/h | C2: =+ROW(A2) -> 2 | D2: Stabilimento [Superficie] | E2: m² | F2: 6 | G2: Infiammabile | H2: 2 | I2: Direttiva Seveso | J2: 3 | S2: =+C2 -> 2 | T2: =SCARTO("D" & $V2 ;0;0;$W$2) | Z2: 0 | AA2: 0 | AB2: =+IF(M2="",H2,"F") -> 2 | AC2: =+IF(Z2=1,G2 & CHAR(10) & "INSERIRE VALORE",G2) -> Infiammabile | AE2: =+VLOOKUP($V2,A2:R22,8) ->  | AF2: =+IF(G2="","",AC2) -> Infiammabile
C3: =+ROW(A3) -> 3 | D3: Solo Deposito [Quantità] | E3: Nm³ | F3: 100 | G3: Comburente | H3: 1 | I3: Non Direttiva Seveso | J3: 1 | S3: 3 | Z3: 0 | AA3: 0 | AB3: =+IF(M3="",H3,"F") -> 1 | AC3: =+IF(Z3=1,G3 & CHAR(10) & "INSERIRE VALORE",G3) -> Comburente | AF3: =+IF(G3="","",AC3) -> Comburente
A4: 2 | B4: Impianti di compressione o di decompressione dei gas infiammabili e/o comburenti con potenzialità superiore a 50 Nm3/h, con esclusione dei sistemi di riduzione del gas naturale inseriti nelle reti di distribuzione con pressione di esercizio non superiore a 0,5 MPa | C4: =+ROW(A4) -> 4 | D4: Ciclo [Superficie] | E4: m² | F4: 6 | G4: Infiammabile | H4: 2 | I4: Direttiva Seveso | J4: 3 | S4: 4 | Z4: 0 | AA4: 0 | AB4: 2 | AC4: Infiammabile | AF4: Infiammabile
C5: 5 | D5: Solo Deposito | E5: Nm³ | F5: 4 | G5: Comburente | H5: 1 | I5: Non Direttiva Seveso | J5: 1 | S5: 5 | Z5: 0 | AA5: 0 | AB5: 1 | AC5: Comburente | AF5: Comburente
A6: 3 | B6: Impianti di riempimento, depositi, rivendite di gas infiammabili in recipienti mobili: compressi con capacità geometrica complessiva superiore o uguale a 0,75 m3; disciolti o liquefatti per quantitativi in massa complessivi superiori o uguali a 75 kg | C6: 6 | D6: Superficie | E6: m² | F6: 6 | G6: Solo Deposito | H6: 1 | I6: Direttiva Seveso | J6: 3 | K6: 200 | L6: 0.1 | S6: 6 | Z6: 0 | AA6: 0 | AB6: 1 | AC6: Solo Deposito | AF6: Solo Deposito
C7: 7 | G7: Deposito e rivendita | H7: 1.2 | I7: Non Direttiva Seveso | J7: 1 | K7: 400 | L7: 0.1 | S7: 7 | Z7: 0 | AA7: 0 | AB7: 1.2 | AC7: Deposito e rivendita | AF7: Deposito e rivendita
A8: 4 | B8: Depositi di gas infiammabili in serbatoi fissi: compressi per capacità geometrica complessiva superiore o uguale a 0, 75 m3; disciolti o liquefatti per capacità geometrica complessiva superiore o uguale a 0,3 m3 | C8: 8 | D8: Volume | E8: m³ | F8: 300 | G8: Solo Deposito | H8: 1 | I8: Direttiva Seveso | J8: 3 | K8: 200 | L8: 0.1 | S8: 8 | Z8: 0 | AA8: 0 | AB8: 1 | AC8: Solo Deposito | AF8: Solo Deposito
C9: 9 | G9: Deposito e rivendita | H9: 1.2 | I9: Non Direttiva Seveso | J9: 1 | K9: 400 | L9: 0.1 | S9: 9 | Z9: 0 | AA9: 0 | AB9: 1.2 | AC9: Deposito e rivendita | AF9: Deposito e rivendita
A10: 5 | B10: Depositi di gas comburenti compressi e/o liquefatti in serbatoi fissi e/o recipienti mobili per capacità geometrica complessiva superiore o uguale a 3 m3 | C10: 10 | D10: Capacità | E10: m³ | F10: 300 | G10: Direttiva Seveso | H10: 3 | I10: Non Def. | J10: 1 | K10: 200 | L10: 0.1 | S10: 10 | Z10: 0 | AA10: 0 | AB10: 3 | AC10: Direttiva Seveso | AF10: Direttiva Seveso
C11: 11 | G11: Non Direttiva Seveso | H11: 1 | J11: 1 | S11: 11 | Z11: 0 | AA11: 0 | AB11: 1 | AC11: Non Direttiva Seveso | AF11: Non Direttiva Seveso
A12: 6 | B12: Reti di trasporto e di distribuzione di gas infiammabili, compresi quelli di origine petrolifera o chimica, con esclusione delle reti di distribuzione e dei relativi impianti con pressione di esercizio non superiore a 0,5 Mpa | C12: 12 | D12: Estensione | E12: m | F12: 80 | G12: Non Def. | H12: 1 | I12: Non Def. | J12: 1 | S12: 12 | Z12: 0 | AA12: 0 | AB12: 1 | AC12: Non Def. | AF12: Non Def.
A13: 7 | B13: Centrali di produzione di idrocarburi liquidi e gassosi e di stoccaggio sotterraneo di gas naturale, piattaforme fisse e strutture fisse assimilabili, di perforazione e/o produzione di idrocarburi di cui al decreto del Presidente della Repubblica 24 maggio 1979, n. 886 ed al decreto legislativo 25 novembre 1996, n. 624 | C13: 13 | D13: Superficie? | E13: m² | F13: 8 | G13: Non Def. | H13: 1 | I13: Non Def. | J13: 1 | S13: 13 | Z13: 0 | AA13: 0 | AB13: 1 | AC13: Non Def. | AF13: Non Def.
A14: 8 | B14: Oleodotti con diametro superiore a 100 mm | C14: 14 | D14: Estensione | E14: m | F14: 20 | G14: Non Def. | H14: 1 | I14: Non Def. | J14: 1 | O14: =+VLOOKUP(L14,INDIRECT(K14),2,FALSE) ->  | S14: 14 | Z14: 0 | AA14: 0 | AB14: 1 | AC14: Non Def. | AF14: Non Def.
A15: 9 | B15: Officine e laboratori con saldatura e taglio dei metalli utilizzanti gas infiammabili e/o comburenti, con oltre 5 addetti alla mansione specifica di saldatura o taglio | C15: 15 | D15: Superficie o Kg materiali | E15: m² | F15: 4 | G15: Non Def. | H15: 1 | I15: Non Def. | J15: 1 | K15: 1000 | L15: 0.2 | S15: 15 | Z15: 0 | AA15: 0 | AB15: 1 | AC15: Non Def. | AF15: Non Def.
A16: 10 | B16: Stabilimenti ed impianti ove si producono e/o impiegano, liquidi infiammabili e/o combustibili con punto di infiammabilità fino a 125 °C, con quantitativi globali in ciclo e/o in deposito superiori a 1 m3 | C16: 16 | D16: Superficie o Qttà | E16: m² | F16: 6 | G16: Infiammabile | H16: 2 | I16: Non Def. | J16: 1 | K16: 1000 | L16: 0.1 | S16: 16 | Z16: 0 | AA16: 0 | AB16: 2 | AC16: Infiammabile | AF16: Infiammabile
C17: 17 | G17: Combustibile | H17: 1 | S17: 17 | Z17: 0 | AA17: 0 | AB17: 1 | AC17: Combustibile | AF17: Combustibile
A18: 11 | B18: Stabilimenti ed impianti per la preparazione di oli lubrificanti, oli diatermici e simili, con punto di infiammabilità superiore a 125 °C, con quantitativi globali in ciclo e/o in deposito superiori a 5 m3 | C18: 18 | D18: Superficie o Qttà | E18: m² | F18: 6 | G18: Infiammabile | H18: 2 | I18: Non Def. | J18: 1 | K18: 1000 | L18: 0.1 | S18: 18 | Z18: 0 | AA18: 0 | AB18: 2 | AC18: Infiammabile | AF18: Infiammabile
C19: 19 | G19: Combustibile | H19: 1 | S19: 19 | Z19: 0 | AA19: 0 | AB19: 1 | AC19: Combustibile | AF19: Combustibile
A20: 12 | B20: Depositi e/o rivendite di liquidi infiammabili e/o combustibili e/o oli lubrificanti, diatermici, di qualsiasi derivazione, di capacità geometrica complessiva superiore a 1 m3 | C20: 20 | D20: Volume | E20: m³ | F20: 150 | G20: Infiammabile | H20: 1.5 | I20: Solo deposito | J20: 1 | K20: 100 | L20: 0.1 | S20: 20 | Z20: 0 | AA20: 0 | AB20: 1.5 | AC20: Infiammabile | AF20: Infiammabile
C21: 21 | G21: Combustibile | H21: 1 | I21: Dep. + rivendita | J21: 1.5 | K21: 100 | L21: 0.1 | S21: 21 | Z21: 0 | AA21: 0 | AB21: 1 | AC21: Combustibile | AF21: Combustibile
A22: 13 | B22: Impianti fissi di distribuzione carburanti per l'autotrazione, la nautica e l'aeronautica; contenitori - distributori rimovibili di carburanti liquidi: Impianti di distribuzione carburanti liquidi; Impianti fissi di distribuzione carburanti gassosi e di tipo misto (liquidi e gassosi). | C22: 22 | D22: Colonnine | E22: n | F22: 100 | G22: Infiammabile | H22: 1.5 | I22: Solo Liquidi | J22: 1 | S22: 22 | Z22: 0 | AA22: 0 | AB22: 1.5 | AC22: Infiammabile | AF22: Infiammabile
C23: 23 | G23: Combustibile | H23: 1 | I23: Liquidi e Gas | J23: 1.5 | S23: 23 | Z23: 0 | AA23: 0 | AB23: 1 | AC23: Combustibile | AF23: Combustibile
A24: 14 | B24: Officine o laboratori per la verniciatura con vernici infiammabili e/o combustibili con oltre 5 addetti. | C24: 24 | D24: Superficie - Postazioni | E24: m² | F24: 4 | G24: Infiammabile - Qtà al Giorno | H24: 1.5 | I24: Non Def. | J24: 1 | K24: 300 | L24: 0.1 | S24: 24 | Z24: 0 | AA24: 0 | AB24: 1.5 | AC24: Infiammabile - Qtà al Giorno | AF24: Infiammabile - Qtà al Giorno
C25: 25 | G25: Combustibile | H25: 1 | S25: 25 | Z25: 0 | AA25: 0 | AB25: 1 | AC25: Combustibile | AF25: Combustibile
A26: 15 | B26: Depositi e/o rivendite di alcoli con concentrazione superiore al 60% in volume di capacità geometrica superiore a 1 m3 | C26: 26 | D26: Volume | E26: m³ | F26: 150 | G26: Infiammabile | H26: 1.5 | I26: Solo deposito | J26: 1 | K26: 100 | L26: 0.1 | S26: 26 | Z26: 0 | AA26: 0 | AB26: 1.5 | AC26: Infiammabile | AF26: Infiammabile
C27: 27 | G27: Combustibile | H27: 1 | I27: Dep. + rivendita | J27: 1.5 | K27: 100 | L27: 0.1 | S27: 27 | Z27: 0 | AA27: 0 | AB27: 1 | AC27: Combustibile | AF27: Combustibile
A28: 16 | B28: Stabilimenti di estrazione con solventi infiammabili e raffinazione di oli e grassi vegetali ed animali, con quantitativi globali di solventi in ciclo e/o in deposito superiori a 0,5 m3 | C28: 28 | D28: Volume | E28: m³ | F28: 150 | G28: Non Def. | H28: 1 | I28: Non Def. | J28: 1 | S28: 28 | Z28: 0 | AA28: 0 | AB28: 1 | AC28: Non Def. | AF28: Non Def.
A29: 17 | B29: Stabilimenti ed impianti ove si producono, impiegano o detengono sostanze esplodenti classificate come tali dal regolamento di esecuzione del testo unico delle leggi di pubblica sicurezza approvato con regio decreto 6 maggio 1940, n. 635, e successive modificazioni ed integrazioni | C29: 29 | D29: Superficie | E29: m² | F29: 8 | G29: Non Def. | H29: 1 | I29: Non Def. | J29: 1 | K29: 1000 | L29: 0.1 | S29: 29 | Z29: 0 | AA29: 0 | AB29: 1 | AC29: Non Def. | AF29: Non Def.
A30: 18 | B30: Esercizi di minuta vendita e/o depositi di sostanze esplodenti classificate come tali dal regolamento di esecuzione del testo unico delle leggi di pubblica sicurezza approvato con regio decreto 6 maggio 1940, n. 635, e successive modificazioni ed integrazioni. Esercizi di vendita di artifici pirotecnici declassificati in "libera vendita" con quantitativi complessivi in vendita e/o deposito superiori a 500 kg, comprensivi degli imballaggi; | C30: 30 | D30: Superficie o Kg materiali | E30: m² | F30: 8 | G30: Libera vendita | H30: 1 | I30: Non Def. | J30: 1 | K30: 1000 | L30: 0.1 | S30: 30 | Z30: 0 | AA30: 0 | AB30: 1 | AC30: Libera vendita | AF30: Libera vendita
C31: 31 | G31: Non Libera vend. | H31: 2 | S31: 31 | Z31: 0 | AA31: 0 | AB31: 2 | AC31: Non Libera vend. | AF31: Non Libera vend.
A32: 19 | B32: Stabilimenti ed impianti ove si producono, impiegano o detengono sostanze instabili che possono dar luogo da sole a reazioni pericolose in presenza o non di catalizzatori ivi compresi i perossidi organici | C32: 32 | D32: Superficie | E32: m² | F32: 8 | G32: Non Def. | H32: 1 | I32: Non Def. | J32: 1 | K32: 1000 | L32: 0.1 | O32: Potremmo mettere i Kg invece della superficie? | S32: 32 | Z32: 0 | AA32: 0 | AB32: 1 | AC32: Non Def. | AF32: Non Def.
A33: 20 | B33: Stabilimenti ed impianti ove si producono, impiegano o detengono nitrati di ammonio, di metalli alcalini e alcolino-terrosi, nitrato di piombo e perossidi inorganici | C33: 33 | D33: Superficie | E33: m² | F33: 8 | G33: Non Def. | H33: 1 | I33: Non Def. | J33: 1 | K33: 1000 | L33: 0.1 | O33: Potremmo mettere i Kg invece della superficie? | S33: 33 | Z33: 0 | AA33: 0 | AB33: 1 | AC33: Non Def. | AF33: Non Def.
A34: 21 | B34: Stabilimenti ed impianti ove si producono, impiegano o detengono sostanze soggette all'accensione spontanea e/o sostanze che a contatto con l'acqua sviluppano gas infiammabili | C34: 34 | D34: Superficie | E34: m² | F34: 8 | G34: Non Def. | H34: 1 | I34: Non Def. | J34: 1 | K34: 1000 | L34: 0.1 | O34: Potremmo mettere i Kg invece della superficie? | S34: 34 | Z34: 0 | AA34: 0 | AB34: 1 | AC34: Non Def. | AF34: Non Def.
A35: 22 | B35: Stabilimenti ed impianti ove si produce acqua ossigenata con concentrazione superiore al 60% di perossido di idrogeno | C35: 35 | D35: Superficie | E35: m² | F35: 8 | G35: Non Def. | H35: 1 | I35: Non Def. | J35: 1 | K35: 1000 | L35: 0.1 | O35: Potremmo mettere i m³ invece della superficie? | S35: 35 | Z35: 0 | AA35: 0 | AB35: 1 | AC35: Non Def. | AF35: Non Def.
A36: 23 | B36: Stabilimenti ed impianti ove si produce, impiega e/o detiene fosforo e/o sesquisolfuro di fosforo | C36: 36 | D36: Superficie o Kg materiali | E36: m² | F36: 8 | G36: Non Def. | H36: 1 | I36: Non Def. | J36: 1 | K36: 1000 | L36: 0.1 | O36: Potremmo mettere i Kg invece della superficie? | S36: 36 | Z36: 0 | AA36: 0 | AB36: 1 | AC36: Non Def. | AF36: Non Def.
A37: 24 | B37: Stabilimenti ed impianti per la macinazione e la raffinazione dello zolfo; depositi di zolfo con potenzialità superiore a 10.000 kg | C37: 37 | D37: Superficie | E37: m² | F37: 8 | G37: Potenzialità [t] INSERIRE VALORE | H37: F | I37: Non Def. | J37: 1 | K37: 1000 | L37: 0.1 | M37: 2 | N37: 10 | O37: Y = (2Q-10)/Q [curva asintotica verso 2] | S37: 37 | Z37: 0 | AA37: 0 | AB37: F | AC37: Potenzialità [t] INSERIRE VALORE | AF37: Potenzialità [t] INSERIRE VALORE
A38: 25 | B38: Fabbriche di fiammiferi; depositi di fiammiferi con quantitativi in massa superiori a 500 kg | C38: 38 | D38: Superficie | E38: m² | F38: 8 | G38: massa [kg] INSERIRE VALORE | H38: F | I38: Non Def. | J38: 1 | K38: 1000 | L38: 0.1 | M38: 2 | N38: 500 | O38: Y = (2Q-500)/Q [curva asintotica verso 2] | S38: 38 | Z38: 0 | AA38: 0 | AB38: F | AC38: massa [kg] INSERIRE VALORE | AF38: massa [kg] INSERIRE VALORE
A39: 26 | B39: : Stabilimenti ed impianti ove si produce, impiega o detiene magnesio, elektron e altre leghe ad alto tenore di magnesio | C39: 39 | D39: Superficie o Kg materiali | E39: m² | F39: 8 | G39: Non Def. | H39: 1 | I39: Non Def. | J39: 1 | K39: 1000 | L39: 0.1 | O39: Potremmo mettere i Kg invece della superficie? | S39: 39 | Z39: 0 | AA39: 0 | AB39: 1 | AC39: Non Def. | AF39: Non Def.
A40: 27 | B40: Mulini per cereali ed altre macinazioni con potenzialità giornaliera superiore a 20.000 kg; Depositi di cereali e di altre macinazioni con quantitativi in massa superiori a 50.000 kg | C40: 40 | D40: Superficie | E40: m² | F40: 6 | G40: massa [t] INSERIRE VALORE | H40: F | I40: Deposito solamente | J40: 0.6 | K40: 1000 | L40: 0.1 | M40: 2 | N40: 20 | O40: Y = (2Q-20)/Q [curva asintotica verso 2] | S40: 40 | Z40: 1 | AA40: 0 | AB40: F | AC40: massa [t] INSERIRE VALORE INSERIRE VALORE | AF40: massa [t] INSERIRE VALORE INSERIRE VALORE
C41: 41 | H41: 0 | I41: Dep. + mulino | J41: 1 | K41: 1000 | L41: 0.1 | S41: 41 | Z41: 1 | AA41: 0 | AB41: 0 | AC41: INSERIRE VALORE
A42: 28 | B42: Impianti per l'essiccazione di cereali e di vegetali in genere con depositi di prodotto essiccato con quantitativi in massa superiori a 50.000 kg | C42: 42 | D42: Superficie | E42: m² | F42: 6 | G42: massa [t] INSERIRE VALORE | H42: F | I42: Non Def. | J42: 1 | K42: 1000 | L42: 0.1 | M42: 2 | N42: 50 | O42: Y = (2Q-50)/Q [curva asintotica verso 2] | S42: 42 | Z42: 1 | AA42: 0 | AB42: F | AC42: massa [t] INSERIRE VALORE INSERIRE VALORE | AF42: massa [t] INSERIRE VALORE INSERIRE VALORE
C43: 43 | H43: 0 | S43: 43 | Z43: 1 | AA43: 0 | AB43: 0 | AC43: INSERIRE VALORE
A44: 29 | B44: Stabilimenti ove si producono surrogati del caff | C44: 44 | D44: Superficie o Kg materiali (doppia) | E44: m² | F44: 6 | G44: Non Def. | H44: 1 | I44: Non Def. | J44: 1 | K44: 1000 | L44: 0.1 | S44: 44 | Z44: 0 | AA44: 0 | AB44: 1 | AC44: Non Def. | AF44: Non Def.
A45: 30 | B45: Zuccherifici e raffinerie dello zucchero | C45: 45 | D45: Superficie o Kg materiali (doppia) | E45: m² | F45: 6 | G45: Non Def. | H45: 1 | I45: Non Def. | J45: 1 | K45: 1000 | L45: 0.1 | S45: 45 | Z45: 0 | AA45: 0 | AB45: 1 | AC45: Non Def. | AF45: Non Def.
A46: 31 | B46: Pastifici e/o riserie con produzione giornaliera superiore a 50.000 kg | C46: 46 | D46: Superficie | E46: m² | F46: 6 | G46: massa [t] INSERIRE VALORE | H46: F | I46: Non Def. | J46: 1 | K46: 1000 | L46: 0.1 | M46: 2 | N46: 50 | O46: Y = (2Q-50)/Q [curva asintotica verso 2] | S46: 46 | Z46: 1 | AA46: 0 | AB46: F | AC46: massa [t] INSERIRE VALORE INSERIRE VALORE | AF46: massa [t] INSERIRE VALORE INSERIRE VALORE
A47: 32 | B47: Stabilimenti ed impianti ove si lavora e/o detiene foglia di tabacco con processi di essiccazione con oltre 100 addetti o con quantitativi globali in ciclo e/o in deposito superiori a 50.000 kg | C47: 47 | D47: Superficie | E47: m² | F47: 6 | G47: massa [t] INSERIRE VALORE | H47: F | I47: Non Def. | J47: 1 | K47: 1000 | L47: 0.1 | M47: 2 | N47: 50 | O47: Y = (2Q-50)/Q [curva asintotica verso 2] | S47: 47 | Z47: 1 | AA47: 0 | AB47: F | AC47: massa [t] INSERIRE VALORE INSERIRE VALORE | AF47: massa [t] INSERIRE VALORE INSERIRE VALORE
A48: 33 | B48: Stabilimenti ed impianti per la produzione della carta e dei cartoni e di allestimento di prodotti cartotecnici in genere con oltre 25 addetti o con materiale in lavorazione e/o in deposito superiore a 50.000 kg | C48: 48 | D48: Superficie | E48: m² | F48: 6 | G48: massa [t] INSERIRE VALORE | H48: F | I48: Deposito di carta | J48: 1 | K48: 1000 | L48: 0.1 | M48: 2 | N48: 50 | O48: Y = (2Q-50)/Q [curva asintotica verso 2] | S48: 48 | Z48: 1 | AA48: 0 | AB48: F | AC48: massa [t] INSERIRE VALORE INSERIRE VALORE | AF48: massa [t] INSERIRE VALORE INSERIRE VALORE
C49: 49 | H49: 0 | I49: Dep. + stabilimento | J49: 1.5 | K49: 1000 | L49: 0.1 | S49: 49 | Z49: 1 | AA49: 0 | AB49: 0 | AC49: INSERIRE VALORE
A50: 34 | B50: Depositi di carta, cartoni e prodotti cartotecnici, archivi di materiale cartaceo, biblioteche, depositi per la cernita della carta usata, di stracci di cascami e di fibre tessili per l'industria della carta, con quantitativi in massa superiori a 5.000 kg | C50: 50 | D50: Superficie | E50: m² | F50: 4 | G50: massa [t] INSERIRE VALORE | H50: F | I50: Depositi/archivi | J50: 1 | K50: 1000 | L50: 0.1 | M50: 2 | N50: 50 | O50: Y = (2Q-50)/Q [curva asintotica verso 2] | S50: 50 | Z50: 1 | AA50: 0 | AB50: F | AC50: massa [t] INSERIRE VALORE INSERIRE VALORE | AF50: massa [t] INSERIRE VALORE INSERIRE VALORE
H51: 0 | I51: Biblioteche | J51: 2 | Z51: 1 | AA51: 0 | AB51: 0 | AC51: INSERIRE VALORE
A52: 35 | B52: Stabilimenti, impianti, depositi ove si producono, impiegano e/o detengono carte fotografiche, calcografiche, eliografiche e cianografiche, pellicole cinematografiche, radiografiche e fotografiche con materiale in lavorazione e/o in deposito superiore a 5.000 kg | C52: 52 | D52: Superficie | E52: m² | F52: 6 | G52: massa [t] INSERIRE VALORE | H52: F | I52: Solo deposito | J52: 1 | K52: 1000 | L52: 0.1 | M52: 2 | N52: 5 | O52: Y = (2Q-5)/Q [curva asintotica verso 2] | S52: 52 | Z52: 1 | AA52: 0 | AB52: F | AC52: massa [t] INSERIRE VALORE INSERIRE VALORE | AF52: massa [t] INSERIRE VALORE INSERIRE VALORE
C53: 53 | H53: 0 | I53: Dep+ Impianto | J53: 1.3 | K53: 1000 | L53: 0.1 | S53: 53 | Z53: 1 | AA53: 0 | AB53: 0 | AC53: INSERIRE VALORE
A54: 36 | B54: Depositi di legnami da costruzione e da lavorazione, di legna da ardere, di paglia, di fieno, di canne, di fascine, di carbone vegetale e minerale, di carbonella, di sughero e di altri prodotti affini con quantitativi in massa superiori a 50.000 kg con esclusione dei depositi all'aperto con distanze di sicurezza esterne superiori a 100 m | C54: =+ROW(A54) -> 54 | D54: Superficie | E54: m² | F54: 4 | G54: massa [t] INSERIRE VALORE | H54: F | I54: Non Def. | J54: 1 | K54: 1000 | L54: 0.1 | M54: 2 | N54: 50 | O54: Y = (2Q-50)/Q [curva asintotica verso 2] | S54: 54 | Z54: 1 | AA54: 0 | AB54: F | AC54: massa [t] INSERIRE VALORE INSERIRE VALORE | AF54: massa [t] INSERIRE VALORE INSERIRE VALORE
A55: 37 | B55: Stabilimenti e laboratori per la lavorazione del legno con materiale in lavorazione e/o in deposito superiore a 5.000 kg | C55: 55 | D55: Superficie | E55: m² | F55: 7 | G55: massa [t] INSERIRE VALORE | H55: F | I55: Solo deposito | J55: 1 | K55: 1000 | L55: 0.1 | M55: 2 | N55: 5 | O55: Y = (2Q-5)/Q [curva asintotica verso 2] | S55: 55 | Z55: 1 | AA55: 0 | AB55: F | AC55: massa [t] INSERIRE VALORE INSERIRE VALORE | AF55: massa [t] INSERIRE VALORE INSERIRE VALORE
C56: 56 | H56: 0 | I56: Dep + Laboratorio | J56: 1.5 | S56: 56 | Z56: 1 | AA56: 0 | AB56: 0 | AC56: INSERIRE VALORE
A57: 38 | B57: Stabilimenti ed impianti ove si producono, lavorano e/o detengono fibre tessili e tessuti naturali e artificiali, tele cerate, linoleum e altri prodotti affini, con quantitativi in massa superiori a 5.000 kg | C57: 57 | D57: Superficie | E57: m² | F57: 6 | G57: massa [t] INSERIRE VALORE | H57: F | I57: Solo deposito | J57: 1 | K57: 1000 | L57: 0.1 | M57: 2 | N57: 5 | O57: Y = (2Q-5)/Q [curva asintotica verso 2] | S57: 57 | Z57: 1 | AA57: 0 | AB57: F | AC57: massa [t] INSERIRE VALORE INSERIRE VALORE | AF57: massa [t] INSERIRE VALORE INSERIRE VALORE
C58: 58 | H58: 0 | I58: Dep + Stabilimento | J58: 1.5 | S58: 58 | Z58: 1 | AA58: 0 | AB58: 0 | AC58: INSERIRE VALORE
A59: 39 | B59: Stabilimenti per la produzione di arredi, di abbigliamento, della lavorazione della pelle e calzaturifici, con oltre 25 addetti | C59: 59 | D59: Superficie | E59: m² | F59: 8 | G59: Non Def. | H59: 1 | I59: Non Def. | J59: 1 | K59: 1000 | L59: 0.1 | S59: 59 | Z59: 0 | AA59: 0 | AB59: 1 | AC59: Non Def. | AF59: Non Def.
A60: 40 | B60: Stabilimenti ed impianti per la preparazione del crine vegetale, della trebbia e simili, lavorazione della paglia, dello sparto e simili, lavorazione del sughero, con quantitativi in massa in lavorazione o in deposito superiori a 5.000 kg | C60: 60 | D60: Superficie | E60: m² | F60: 8 | G60: massa [t] INSERIRE VALORE | H60: F | I60: Solo deposito | J60: 0.6 | K60: 1000 | L60: 0.1 | M60: 2 | N60: 5 | O60: Y = (2Q-5)/Q [curva asintotica verso 2] | S60: 60 | Z60: 1 | AA60: 0 | AB60: F | AC60: massa [t] INSERIRE VALORE INSERIRE VALORE | AF60: massa [t] INSERIRE VALORE INSERIRE VALORE
C61: 61 | H61: 0 | I61: Dep + Stabilimento | J61: 1 | S61: 61 | Z61: 1 | AA61: 0 | AB61: 0 | AC61: INSERIRE VALORE
A62: 41 | B62: Teatri e studi per le riprese cinematografiche e televisive | C62: 62 | D62: Superficie | E62: m² | F62: 6 | G62: Non Def. | H62: 1 | I62: Non Def. | J62: 1 | K62: 1000 | L62: 0.1 | S62: 62 | Z62: 0 | AA62: 0 | AB62: 1 | AC62: Non Def. | AF62: Non Def.
C63: 63 | J63: 1 | S63: 63 | Z63: 0 | AA63: 0 | AB63: 0 | AC63: 0
A64: 42 | B64: Laboratori per la realizzazione di attrezzerie e scenografie, compresi i relativi depositi, di superficie complessiva superiore a 200 m2 | C64: 64 | D64: Superficie | E64: m² | F64: 6 | G64: Non Def. | H64: 1 | I64: Non Def. | J64: 1 | K64: 1000 | L64: 0.1 | S64: 64 | Z64: 0 | AA64: 0 | AB64: 1 | AC64: Non Def. | AF64: Non Def.
A65: 43 | B65: Stabilimenti ed impianti per la produzione, lavorazione e rigenerazione della gomma e/o laboratori di vulcanizzazione di oggetti di gomma, con quantitativi in massa superiori a 5.000 kg; Depositi di prodotti della gomma, pneumatici e simili, con quantitativi in massa superiori a 10.000 kg | C65: 65 | D65: Superficie | E65: m² | F65: 6 | G65: massa [t] INSERIRE VALORE | H65: F | I65: Solo deposito | J65: 0.6 | K65: 1000 | L65: 0.1 | M65: 2 | N65: 5 | O65: Y = (2Q-5)/Q [curva asintotica verso 2] | S65: 65 | Z65: 0 | AA65: 0 | AB65: F | AC65: massa [t] INSERIRE VALORE | AF65: massa [t] INSERIRE VALORE
C66: 66 | H66: 0 | I66: Dep + Stabilimento | J66: 1 | S66: 66 | Z66: 0 | AA66: 0 | AB66: 0
A67: 44 | B67: Stabilimenti, impianti, depositi ove si producono, lavorano e/o detengono materie plastiche, con quantitativi in massa superiori a 5.000 kg | C67: 67 | D67: Superficie | E67: m² | F67: 6 | G67: massa [t] INSERIRE VALORE | H67: F | I67: Solo deposito | J67: 0.6 | K67: 1000 | L67: 0.1 | M67: 2 | N67: 5 | O67: Y = (2Q-5)/Q [curva asintotica verso 2] | S67: =+C67 -> 67 | Z67: 1 | AA67: 0 | AB67: =+IF(M67="",H67,"F") -> F | AC67: =+IF(Z67=1,G67 & CHAR(10) & "INSERIRE VALORE",G67) -> massa [t] INSERIRE VALORE INSERIRE VALORE | AF67: =+IF(G67="","",AC67) -> massa [t] INSERIRE VALORE INSERIRE VALORE
C68: 68 | H68: 0 | I68: Dep + Stabilimento | J68: 1 | S68: 68 | Z68: 1 | AA68: 0 | AB68: 0 | AC68: INSERIRE VALORE
A69: 45 | B69: Stabilimenti ed impianti ove si producono e lavorano resine sintetiche e naturali, fitofarmaci, coloranti organici e intermedi e prodotti farmaceutici con l'impiego di solventi ed altri prodotti infiammabili | C69: 69 | D69: Superficie | E69: m² | F69: 6 | G69: Non Def. | H69: 1 | I69: Non Def. | J69: 1 | K69: 1000 | L69: 0.1 | S69: 69 | Z69: 0 | AA69: 0 | AB69: 1 | AC69: Non Def. | AF69: Non Def.
C70: 70 | H70: 0 | S70: 70 | Z70: 0 | AA70: 0 | AB70: 0
A71: 46 | B71: Depositi di fitofarmaci e/o di concimi chimici a base di nitrati e/o fosfati con quantitativi in massa superiori a 50.000 kg | C71: 71 | D71: Superficie | E71: m² | F71: 4 | G71: massa [t] INSERIRE VALORE | H71: F | I71: Non Def. | J71: 1 | K71: 300 | L71: 0.1 | M71: 2 | N71: 50 | O71: Y = (2Q-50)/Q [curva asintotica verso 2] | S71: 71 | Z71: 1 | AA71: 0 | AB71: F | AC71: massa [t] INSERIRE VALORE INSERIRE VALORE | AF71: massa [t] INSERIRE VALORE INSERIRE VALORE
A72: 47 | B72: Stabilimenti ed impianti per la fabbricazione di cavi e conduttori elettrici isolati, con quantitativi in lavorazione e/o in deposito superiori a 10.000 kg; Depositi e/o rivendite di cavi elettrici isolati con quantitativi superiori a 10.000 kg | C72: 72 | D72: Superficie | E72: m² | F72: 6 | G72: massa [t] INSERIRE VALORE | H72: F | I72: Solo deposito | J72: 0.6 | K72: 1000 | L72: 0.1 | M72: 2 | N72: 10 | O72: Y = (2Q-10)/Q [curva asintotica verso 2] | S72: 72 | Z72: 1 | AA72: 0 | AB72: F | AC72: massa [t] INSERIRE VALORE INSERIRE VALORE | AF72: massa [t] INSERIRE VALORE INSERIRE VALORE
C73: 73 | H73: 0 | I73: Dep + impianto | J73: 1 | S73: 73 | Z73: 0 | AA73: 0 | AB73: 0
A74: 48 | B74: Centrali termoelettriche, macchine elettriche fisse con presenza di liquidi isolanti combustibili in quantitativi superiori a 1 m³ | C74: 74 | D74: Potenza | E74: MW | F74: 30 | G74: Non Def. | H74: 1 | I74: Non Def. | J74: 1 | S74: 74 | Z74: 0 | AA74: 0 | AB74: 1 | AC74: Non Def. | AF74: Non Def.
A75: 49 | B75: Gruppi per la produzione di energia elettrica sussidiaria con motori endotermici ed impianti di cogenerazione di potenza complessiva superiore a 25 kW | C75: 75 | D75: Potenza | E75: kW | F75: 4 | G75: Isolato o all'esterno | H75: 0.6 | I75: Non Def. | J75: 1 | S75: 75 | Z75: 0 | AA75: 0 | AB75: 0.6 | AC75: Isolato o all'esterno | AF75: Isolato o all'esterno
C76: 76 | G76: In edificio | H76: 1 | S76: 76 | Z76: 0 | AA76: 0 | AB76: 1 | AC76: In edificio | AF76: In edificio
A77: 50 | B77: Stabilimenti ed impianti ove si producono lampade elettriche e simili, pile ed accumulatori elettrici e simili, con oltre 5 addetti | C77: 77 | D77: Superficie | E77: m² | F77: 6 | G77: Non Def. | H77: 1 | I77: Non Def. | J77: 1 | K77: 1000 | L77: 0.1 | S77: 77 | Z77: 0 | AA77: 0 | AB77: 1 | AC77: Non Def. | AF77: Non Def.
A78: 51 | B78: Stabilimenti siderurgici e per la produzione di altri metalli con oltre 5 addetti; attività comportanti lavorazioni a caldo di metalli con oltre 5 addetti ad esclusione dei laboratori artigiani di oreficeria ed argenteria fino a 25 addetti | C78: 78 | D78: Superficie | E78: m² | F78: 6 | G78: Non Def. | H78: 1 | I78: Non Def. | J78: 1 | K78: 1000 | L78: 0.2 | S78: 78 | Z78: 0 | AA78: 0 | AB78: 1 | AC78: Non Def. | AF78: Non Def.
A79: 52 | B79: Stabilimenti, con oltre 5 addetti, per la costruzione di aeromobili, veicoli a motore, materiale rotabile ferroviario e tramviario, carrozzerie e rimorchi per autoveicoli; cantieri navali con oltre 5 addetti | C79: 79 | D79: Superficie | E79: m² | F79: 8 | G79: Non Def. | H79: 1 | I79: Non Def. | J79: 1 | K79: 1000 | L79: 0.1 | S79: 79 | Z79: 0 | AA79: 0 | AB79: 1 | AC79: Non Def. | AF79: Non Def.
A80: 53 | B80: Officine per la riparazione di: veicoli a motore, rimorchi per autoveicoli e carrozzerie, di superficie coperta superiore a 300 m2; materiale rotabile tramviario e di aeromobili, di superficie coperta superiore a 1000 m2 | C80: 80 | D80: Superficie | E80: m² | F80: 6 | G80: Solo Veicoli a motore | H80: 1 | I80: Non Def. | J80: 1 | K80: 1000 | L80: 0.1 | S80: 80 | Z80: 0 | AA80: 0 | AB80: 1 | AC80: Solo Veicoli a motore | AF80: Solo Veicoli a motore
C81: 81 | G81: Aeromobili o treni | H81: 0.6 | S81: 81 | Z81: 0 | AA81: 0 | AB81: 0.6 | AC81: Aeromobili o treni | AF81: Aeromobili o treni
A82: 54 | B82: Officine meccaniche per lavorazioni a freddo con oltre 25 addetti | C82: 82 | D82: Superficie | E82: m² | F82: 6 | G82: Non Def. | H82: 1 | I82: Non Def. | J82: 1 | K82: 1000 | L82: 0.1 | S82: 82 | Z82: 0 | AA82: 0 | AB82: 1 | AC82: Non Def. | AF82: Non Def.
A83: 55 | B83: Attività di demolizioni di veicoli e simili con relativi depositi, di superficie superiore a 3000 m² | C83: 83 | D83: Superficie | E83: m² | F83: 6 | G83: Non Def. | H83: 1 | I83: Non Def. | J83: 1 | K83: 1000 | L83: 0.1 | S83: 83 | Z83: 0 | AA83: 0 | AB83: 1 | AC83: Non Def. | AF83: Non Def.
A84: 56 | B84: Stabilimenti ed impianti ove si producono laterizi, maioliche, porcellane e simili con oltre 25 addetti | C84: 84 | D84: Superficie | E84: m² | F84: 6 | G84: Non Def. | H84: 1 | I84: Non Def. | J84: 1 | K84: 1000 | L84: 0.1 | S84: 84 | Z84: 0 | AA84: 0 | AB84: 1 | AC84: Non Def. | AF84: Non Def.
A85: 57 | B85: Cementifici con oltre 25 addetti | C85: 85 | D85: Superficie | E85: m² | F85: 6 | G85: Non Def. | H85: 1 | I85: Non Def. | J85: 1 | K85: 1000 | L85: 0.1 | S85: 85 | Z85: 0 | AA85: 0 | AB85: 1 | AC85: Non Def. | AF85: Non Def.
A86: 58 | B86: Pratiche di cui al D.Lgs. 230/95 s.m.i. soggette a provvedimenti autorizzativi (art. 27 del D.Lgs. 230/95 ed art. 13 legge 31 dicembre 1962, n. 1860) | C86: 86 | D86: Superficie | E86: m² | F86: 6 | G86: Categoria B | H86: 1 | I86: Non Def. | J86: 1 | K86: 1000 | L86: 0.1 | S86: 86 | Z86: 0 | AA86: 0 | AB86: 1 | AC86: Categoria B | AF86: Categoria B
C87: 87 | G87: Categoria A | H87: 1.5 | S87: 87 | Z87: 0 | AA87: 0 | AB87: 1.5 | AC87: Categoria A | AF87: Categoria A
A88: 59 | B88: Autorimesse adibite al ricovero di mezzi utilizzati per il trasporto di materie fissili speciali e di materie radioattive (art. 5 della legge 31 dicembre 1962, n. 1860, sostituito dall'art. 2 del decreto del Presidente della Repubblica 30 dicembre 1965, n. 1704; art. 21 del D.Lgs. 230/95) | C88: 88 | D88: Superficie | E88: m² | F88: 4 | G88: Non Def. | H88: 1 | I88: Non Def. | J88: 1 | K88: 1000 | L88: 0.1 | S88: 88 | Z88: 0 | AA88: 0 | AB88: 1 | AC88: Non Def. | AF88: Non Def.
A89: 60 | B89: Impianti di deposito delle materie nucleari ed attività assoggettate agli artt. 33 e 52 del decreto legislativo 17 marzo 1995, n. 230 e s.m.i. , con esclusione dei depositi in corso di spedizione | C89: 89 | D89: Superficie | E89: m² | F89: 6 | G89: Non Def. | H89: 1 | I89: Non Def. | J89: 1 | K89: 1000 | L89: 0.1 | S89: 89 | Z89: 0 | AA89: 0 | AB89: 1 | AC89: Non Def. | AF89: Non Def.
A90: 61 | B90: Impianti nei quali siano detenuti combustibili nucleari o prodotti o residui radioattivi [art. 1, lettera b) della legge 31 dicembre 1962, n. 1860] | C90: 90 | D90: Superficie | E90: m² | F90: 6 | G90: Non Def. | H90: 1 | I90: Non Def. | J90: 1 | K90: 1000 | L90: 0.1 | S90: 90 | Z90: 0 | AA90: 0 | AB90: 1 | AC90: Non Def. | AF90: Non Def.
A91: 62 | B91: Impianti relativi all'impiego pacifico dell'energia nucleare ed attività che comportano pericoli di radiazioni ionizzanti derivanti dal predetto impiego: impianti nucleari | C91: 91 | D91: Superficie | E91: m² | F91: 10 | G91: Non Def. | H91: 1 | I91: Non Def. | J91: 1 | K91: 1000 | L91: 0.1 | S91: 91 | Z91: 0 | AA91: 0 | AB91: 1 | AC91: Non Def. | AF91: Non Def.
A92: 63 | B92: Stabilimenti per la produzione, depositi di sapone, di candele e di altri oggetti di cera e di paraffina, di acidi grassi, di glicerina grezza quando non sia prodotta per idrolisi, di glicerina | C92: 92 | D92: Superficie | E92: m² | F92: 4 | G92: massa [kg] | H92: F | I92: Non Def. | J92: 1 | K92: 1000 | L92: 0.1 | M92: 2 | N92: 500 | O92: Y = (2Q-500)/Q [curva asintotica verso 2] | S92: 92 | Z92: 0 | AA92: 0 | AB92: F | AC92: massa [kg] | AF92: massa [kg]
A93: 64 | B93: Centri informatici di elaborazione e/o archiviazione dati con oltre 25 addetti | C93: 93 | D93: Superficie | E93: m² | F93: 6 | G93: Non Def. | H93: 1 | I93: Non Def. | J93: 1 | K93: 300 | L93: 0.1 | S93: 93 | Z93: 0 | AA93: 0 | AB93: 1 | AC93: Non Def. | AF93: Non Def.
A94: 65 | B94: Locali di spettacolo e di trattenimento in genere, impianti e centri sportivi, palestre, sia a carattere pubblico che privato, con capienza superiore a 100 persone, ovvero di superficie lorda in pianta al chiuso superiore a 200 m2. Sono escluse le manifestazioni temporanee, di qualsiasi genere, che si effettuano in locali o luoghi aperti al pubblico | C94: 94 | D94: Superficie | E94: m² | F94: 6 | G94: Persone INSERIRE VALORE | H94: F | I94: Non Def. | J94: 1 | K94: 1000 | L94: 0.1 | M94: 3 | N94: 200 | O94: Y = (3N-200)/N [curva asintotica verso 3] | S94: 94 | T94: 3 | U94: 100 | Z94: 1 | AA94: 0 | AB94: F | AC94: Persone INSERIRE VALORE INSERIRE VALORE | AF94: Persone INSERIRE VALORE INSERIRE VALORE
A95: 66 | B95: Alberghi, pensioni, motel, villaggi albergo, residenze turistico - alberghiere, studentati, villaggi turistici, alloggi agrituristici, ostelli per la gioventù, rifugi alpini, bed & breakfast, dormitori, case per ferie, con oltre 25 posti-letto; Strutture turistico-ricettive nell'aria aperta (campeggi, villaggi-turistici, ecc.) con capacità ricettiva superiore a 400 persone | C95: 95 | D95: Superficie | E95: m² | F95: 6 | G95: Posti Letto INSERIRE VALORE | H95: F | I95: Non Def. | J95: 1 | K95: 1000 | L95: 0.4 | M95: 2 | N95: 25 | O95: Y = (2N-25)/N [curva asintotica verso 2] | S95: 95 | Z95: 1 | AA95: 0 | AB95: F | AC95: Posti Letto INSERIRE VALORE INSERIRE VALORE | AF95: Posti Letto INSERIRE VALORE INSERIRE VALORE
A96: 67 | B96: Scuole di ogni ordine, grado e tipo, collegi, accademie con oltre 100 persone presenti; asili nido con oltre 30 persone presenti | C96: 96 | D96: Superficie | E96: m² | F96: 4 | G96: Persone INSERIRE VALORE | H96: F | I96: Non Def. | J96: 1 | K96: 1000 | L96: 0.1 | M96: 2 | N96: 100 | O96: Y = (3N-100)/N [curva asintotica verso 3] | S96: 96 | Z96: 1 | AA96: 0 | AB96: F | AC96: Persone INSERIRE VALORE INSERIRE VALORE | AF96: Persone INSERIRE VALORE INSERIRE VALORE
A97: 68 | B97: Strutture sanitarie che erogano prestazioni in regime di ricovero ospedaliero e/o residenziale a ciclo continuativo e/o diurno, case di riposo per anziani con oltre 25 posti letto; Strutture sanitarie che erogano prestazioni di assistenza specialistica in regime ambulatoriale, ivi comprese quelle riabilitative, di diagnostica strumentale e di laboratorio, di superficie complessiva superiore a 500 m2 | C97: 97 | D97: Sup. area tipo C e D1 | E97: m² | F97: 6 | G97: Sup. area tipo B e F INSERIRE VALORE | H97: 7 | I97: Sup. area tipo D2 INSERIRE VALORE | J97: 8 | K97: 3000 | L97: 0.4 | O97: Per le aree di tipo C e D1 si applicano i limiti in superficie | S97: 97 | Z97: 0 | AA97: 0 | AB97: 7 | AC97: Sup. area tipo B e F INSERIRE VALORE | AF97: Sup. area tipo B e F INSERIRE VALORE
A98: 69 | B98: Locali adibiti ad esposizione e/o vendita all'ingrosso o al dettaglio, fiere e quartieri fieristici, con superficie lorda superiore a 400 m2 comprensiva dei servizi e depositi. Sono escluse le manifestazioni temporanee, di qualsiasi genere, che si effettuano in locali o luoghi aperti al pubblico | C98: 98 | D98: Superficie | E98: m² | F98: 6 | G98: Vendita Ingrosso INSERIRE VALORE | H98: 0.8 | I98: Non Def. | J98: 1 | K98: 1000 | L98: 0.3 | S98: 98 | Z98: 1 | AA98: 1 | AB98: 0.8 | AC98: Vendita Ingrosso INSERIRE VALORE INSERIRE VALORE | AF98: Vendita Ingrosso INSERIRE VALORE INSERIRE VALORE
C99: 99 | G99: Vendita Dettaglio | H99: 1 | S99: 99 | AA99: 0 | AB99: 1 | AC99: Vendita Dettaglio | AF99: Vendita Dettaglio
A100: 70 | B100: Locali adibiti a depositi di superficie lorda superiore a 1000 m2 con quantitativi di merci e materiali combustibili superiori complessivamente a 5000 kg | C100: 100 | D100: Superficie | E100: m² | F100: 4 | G100: massa [t] INSERIRE VALORE | H100: F | I100: Non Def. | J100: 1 | K100: 1000 | L100: 0.1 | M100: 2 | N100: 5 | O100: Y = (2Q-5)/Q [curva asintotica verso 2] | S100: 100 | Z100: 1 | AA100: 0 | AB100: F | AC100: massa [t] INSERIRE VALORE INSERIRE VALORE | AF100: massa [t] INSERIRE VALORE INSERIRE VALORE
A101: 71 | B101: Aziende ed uffici con oltre 300 persone presenti | C101: 101 | D101: Superficie | E101: m² | F101: 6 | G101: Persone INSERIRE VALORE | H101: F | I101: Non Def. | J101: 1 | K101: 1000 | L101: 0.4 | M101: 3 | N101: 300 | O101: Y = (3N-300)/N [curva asintotica verso 3] | S101: 101 | Z101: 1 | AA101: 0 | AB101: F | AC101: Persone INSERIRE VALORE INSERIRE VALORE | AF101: Persone INSERIRE VALORE INSERIRE VALORE
A102: 72 | B102: Edifici sottoposti a tutela ai sensi del D.Lgs. 22 gennaio 2004, n. 42 destinati a contenere biblioteche ed archivi, musei, gallerie, esposizioni e mostre, nonché qualsiasi altra attività contenuta nel presente Allegato indipendentemente dal numero di attività costituenti e dalla relativa diversa titolarità | C102: 102 | D102: Superficie | E102: m² | F102: 8 | G102: Bibblioteche, museo e simili | H102: 1 | I102: Non Def. | J102: 1 | K102: 1000 | L102: 0.3 | O102: Se le attività all'interno sono già soggette si aumenta solo di un 30% | S102: 102 | Z102: 0 | AA102: 0 | AB102: 1 | AC102: Bibblioteche, museo e simili | AF102: Bibblioteche, museo e simili
C103: 103 | G103: Altre attività soggette | H103: 0.3 | S103: 103 | Z103: 0 | AA103: 0 | AB103: 0.3 | AC103: Altre attività soggette | AF103: Altre attività soggette
A104: 73 | B104: Edifici e/o complessi edilizi a uso terziario e/o industriale caratterizzati da promiscuità strutturale e/o dei sistemi delle vie di esodo e/o impiantistica con presenza di persone superiore a 300 unità, ovvero di superficie complessiva superiore a 5000 m2, indipendentemente dal numero di attività costituenti e dalla relativa diversa titolarità | C104: 104 | D104: Superficie | E104: m² | F104: 4 | G104: Attività interne non soggette | H104: 1 | I104: Non Def. | J104: 1 | K104: 1500 | L104: 0.1 | O104: Se le attività all'interno sono già soggette si aumenta solo di un 20% | S104: 104 | Z104: 0 | AA104: 0 | AB104: 1 | AC104: Attività interne non soggette | AF104: Attività interne non soggette
C105: 105 | G105: Attività interne soggette | H105: 0.2 | S105: 105 | Z105: 0 | AA105: 0 | AB105: 0.2 | AC105: Attività interne soggette | AF105: Attività interne soggette
A106: 74 | B106: Impianti per la produzione di calore alimentati a combustibile solido, liquido o gassoso con potenzialità superiore a 116 kW | C106: 106 | D106: Potenza | E106: kW | F106: 4 | G106: Non Def. | H106: 1 | I106: Non Def. | J106: 1 | S106: 106 | Z106: 0 | AA106: 0 | AB106: 1 | AC106: Non Def. | AF106: Non Def.
A107: 75 | B107: Autorimesse pubbliche e private, parcheggi pluriplano e meccanizzati di superficie complessiva superiore a 300 m2; locali adibiti al ricovero di natanti ed aeromobili di superficie superiore a 500 m2; depositi di mezzi rotabili al chiuso (treni, tram ecc.) di superficie superiore a 1000 m2 | C107: 107 | D107: Superficie | E107: m² | F107: 6 | G107: Num. di Piani Interrati INSERIRE VALORE | H107: F | I107: Automobili | J107: 1 | K107: 1000 | L107: 0.4 | M107: 2 | N107: 0.8 | O107: Y = (2P-1)/P [curva asintotica verso 2] | S107: 107 | Z107: 1 | AA107: 0 | AB107: F | AC107: Num. di Piani Interrati INSERIRE VALORE INSERIRE VALORE | AF107: Num. di Piani Interrati INSERIRE VALORE INSERIRE VALORE
C108: 108 | H108: 0 | I108: Rotabili | J108: 0.6 | S108: 108 | Z108: 1 | AA108: 0 | AB108: 0 | AC108: INSERIRE VALORE
A109: 76 | B109: Tipografie, litografie, stampa in offset ed attività similari con oltre cinque addett | C109: 109 | D109: Superficie | E109: m² | F109: 6 | G109: Non Def. | H109: 1 | I109: Non Def. | J109: 1 | K109: 1000 | L109: 0.1 | S109: 109 | Z109: 0 | AA109: 0 | AB109: 1 | AC109: Non Def. | AF109: Non Def.
A110: 77 | B110: Edifici destinati ad uso civile, con altezza antincendio superiore a 24 m | C110: 110 | D110: Altezza | E110: m | F110: 6 | G110: Numero Scale INSERIRE VALORE | H110: F | I110: Non Def. | J110: 1 | K110: 60 | L110: 0.3 | M110: 2 | N110: 1 | O110: Y = (2P-1)/P [curva asintotica verso 2] | S110: 110 | Z110: 1 | AA110: 0 | AB110: F | AC110: Numero Scale INSERIRE VALORE INSERIRE VALORE | AF110: Numero Scale INSERIRE VALORE INSERIRE VALORE
A111: 78 | B111: Aerostazioni, stazioni ferroviarie, stazioni marittime, con superficie coperta accessibile al pubblico superiore a 5000 m2; metropolitane in tutto o in parte sotterranee | C111: 111 | D111: Superficie (per aerostazioni, stazioni ecc) | E111: m² | F111: 8 | G111: Aerostazione | H111: 3 | I111: Non Def. | J111: 1 | K111: 5000 | L111: 0.4 | S111: 111 | Z111: 0 | AA111: 0 | AB111: 3 | AC111: Aerostazione | AF111: Aerostazione
C112: 112 | D112: N. Fermate metropolitane | E112: n | F112: 40000 | G112: Stazione Ferroviaria | H112: 1 | S112: 112 | Z112: 0 | AA112: 0 | AB112: 1 | AC112: Stazione Ferroviaria | AF112: Stazione Ferroviaria
A113: 79 | B113: Interporti con superficie superiore a 20.000 m² | C113: 113 | D113: Superficie | E113: m² | F113: 4 | G113: Non Def. | H113: 1 | I113: Non Def. | J113: 1 | K113: 50000 | L113: 0.1 | S113: 113 | Z113: 0 | AA113: 0 | AB113: 1 | AC113: Non Def. | AF113: Non Def.
A114: 80 | B114: Gallerie stradali di lunghezza superiore a 500 m e ferroviarie superiori a 2000 | C114: 114 | D114: Lunghezza | E114: m | F114: 100 | G114: Autostradale | H114: 3 | I114: Non Def. | J114: 1 | S114: =+C114 -> 114 | Z114: 0 | AA114: 0 | AB114: 3 | AC114: Autostradale | AF114: Autostradale
C115: 115 | G115: Ferroviaria | H115: 1 | S115: =+C115 -> 115 | Z115: 0 | AA115: 0 | AB115: 1 | AC115: Ferroviaria | AF115: Ferroviaria
A116: 81 | C116: 116

Sheet MULTI ATTIVITA (hidden)
F1: PARAMETRI
A2: Num. | B2: Attività | C2: Descrizione | D2: Sottotipo | E2: Un.Mis | F2: Principale [S] | G2: Agg. 1 (X) | H2: Valore | I2: Agg. 2 (Y) | J2: Valore | K2: NORMA | L2: DEROGA | M2: Totale | AA2: rif.RigaIn | AB2: Rif.RigaFin | AC2: Ind.Sottotipo | AD2: Fatt. Corr | AE2: Par.Agg1 | AF2: Par.X | AG2: Par.Agg2 | AH2: Par.Y | AI2: Limite | AJ2: Eccedenza | AK2: PAR X | AL2: PAR Y | AM2: Par. Princ | AN2: PER ATT. 68 | AQ2: Nomrata | AR2: der
A3: 1 | B3: 12 | C3: =+VLOOKUP($B3,TabAtt,2,FALSE) -> Depositi e/o rivendite di liquidi infiammabili e/o combustibili e/o oli lubrificanti, diatermici, di qualsiasi derivazione, di capacità geometrica complessiva superiore a 1 m3 | D3: Volume | E3: =+VLOOKUP(D3,INDIRECT(ADDRESS(AA3,4,1,,"PARAMETRI ATTIVITA") & ":" & +ADDRESS(AA3+5,12,1,,)),2,FALSE) -> m³ | F3: 3000 | G3: Infiammabile | H3: 500 | I3: Solo deposito | J3: 0 | K3: Prescrittiva | L3: no | M3: =IFERROR(IF(AI3=0,+SQRT(AM3*AD3)*AF3*AH3,IF(AM3-AI3<0,+SQRT((AM3+AN3)*AD3)*AF3*AH3,SQRT((AI3+AN3+(AM3-AI3)*AJ3)*AD3))*AF3*AH3),0)*PRODUCT(AQ3:AR3) -> 362.8015987 | AA3: =+VLOOKUP($B3,TabAtt,3,FALSE) -> 20 | AB3: =+VLOOKUP($B3+1,TabAtt,3,FALSE)-AA3 -> 2 | AC3: =+ADDRESS(AA3,4,1,,"PARAMETRI ATTIVITA") -> 'PARAMETRI ATTIVITA'!$D$20 | AD3: =+VLOOKUP(D3,INDIRECT(ADDRESS(AA3,4,1,,"PARAMETRI ATTIVITA") & ":" & +ADDRESS(AA3+5,12,1,,)),3,FALSE) -> 150 | AE3: =+ADDRESS(AA3,7,1,,"PARAMETRI ATTIVITA") -> 'PARAMETRI ATTIVITA'!$G$20 | AF3: =+IF(AP3="F",IF((H3*AK3-AL3)/H3<0,1,(H3*AK3-AL3)/H3),AP3) -> 1.5 | AG3: =+ADDRESS(AA3,9,1,,"PARAMETRI ATTIVITA") -> 'PARAMETRI ATTIVITA'!$I$20 | AH3: =++IF(B3=68,1,VLOOKUP(I3,INDIRECT(ADDRESS(AA3,9,1,,"PARAMETRI ATTIVITA") & ":" & +ADDRESS(AA3+5,108,1,,)),2,FALSE)) -> 1 | AI3: =+VLOOKUP(D3,INDIRECT(ADDRESS(AA3,4,1,,"PARAMETRI ATTIVITA") & ":" & +ADDRESS(AA3+5,12,1,,)),8,FALSE) -> 100 | AJ3: =+VLOOKUP(D3,INDIRECT(ADDRESS(AA3,4,1,,"PARAMETRI ATTIVITA") & ":" & +ADDRESS(AA3+5,12,1,,)),9,FALSE) -> 0.1 | AK3: =+IF(ISERROR(VLOOKUP($B3,TabAtt,13,FALSE))=FALSE,VLOOKUP($B3,TabAtt,13,FALSE),1) -> 0 | AL3: =+IF(ISERROR(VLOOKUP($B3,TabAtt,14,FALSE))=FALSE,VLOOKUP($B3,TabAtt,14,FALSE),1) -> 0 | AM3: =+F3 -> 3000 | AN3: =+IF(B3=68,H3*VLOOKUP(G3,INDIRECT(ADDRESS(AA3,7,1,,"PARAMETRI ATTIVITA") & ":" & +ADDRESS(AA3+5,8,1,,)),2,FALSE)+J3*VLOOKUP(I3,INDIRECT(ADDRESS(AA3,9,1,,"PARAMETRI ATTIVITA") & ":" & +ADDRESS(AA3+5,108,1,,)),2,FALSE),0) -> 0 | AP3: =+IF(B3=68,1,VLOOKUP(G3,INDIRECT(ADDRESS(AA3,7,1,,"PARAMETRI ATTIVITA") & ":" & +ADDRESS(AA3+5,8,1,,)),2,FALSE)) -> 1.5 | AQ3: =+VLOOKUP(K3,$AC$17:$AD$19,2,FALSE) -> 1 | AR3: =+VLOOKUP(L3,$AE$17:$AH$18,2,FALSE) -> 1 | AS3: =+VLOOKUP(T3,$AE$17:$AH$18,3,FALSE) ->  | AT3: =+VLOOKUP(U3,$AE$17:$AH$18,4,FALSE) -> 
A4: =+IF(B4="","",A3+1) -> 2 | B4: 73 | C4: Edifici e/o complessi edilizi a uso terziario e/o industriale caratterizzati da promiscuità strutturale e/o dei sistemi delle vie di esodo e/o impiantistica con presenza di persone superiore a 300 unità, ovvero di superficie complessiva superiore a 5000 m2, indipendentemente dal numero di attività costituenti e dalla relativa diversa titolarità | D4: Superficie | E4: m² | F4: 1000 | G4: Attività interne soggette | H4: 50 | I4: Non Def. | J4: 0 | K4: Non Normato | L4: no | M4: =IFERROR(IF(AI4=0,+SQRT(AM4*AD4)*AF4*AH4,IF(AM4-AI4<0,+SQRT((AM4+AN4)*AD4)*AF4*AH4,SQRT((AI4+AN4+(AM4-AI4)*AJ4)*AD4))*AF4*AH4),0)*PRODUCT(AQ4:AR4) -> 3.035786554 | AA4: 104 | AB4: 2 | AC4: 'PARAMETRI ATTIVITA'!$D$104 | AD4: 4 | AE4: 'PARAMETRI ATTIVITA'!$G$104 | AF4: 0.2 | AG4: 'PARAMETRI ATTIVITA'!$I$104 | AH4: 1 | AI4: 1500 | AJ4: 0.1 | AK4: 0 | AL4: 0 | AM4: 1000 | AN4: 0 | AP4: =+IF(B4=68,1,VLOOKUP(G4,INDIRECT(ADDRESS(AA4,7,1,,"PARAMETRI ATTIVITA") & ":" & +ADDRESS(AA4+5,8,1,,)),2,FALSE)) -> 0.2 | AQ4: =+VLOOKUP(K4,$AC$17:$AD$19,2,FALSE) -> 1.2 | AR4: =+VLOOKUP(L4,$AE$17:$AH$18,2,FALSE) -> 1
A5: =+IF(B5="","",A4+1) -> 3 | B5: 70 | C5: Locali adibiti a depositi di superficie lorda superiore a 1000 m2 con quantitativi di merci e materiali combustibili superiori complessivamente a 5000 kg | D5: Volume | F5: 3000 | G5: Solo Deposito | H5: 100 | I5: Non Direttiva Seveso | J5: 0 | K5: Non Normato | L5: no | M5: 0 | AA5: 100 | AB5: 1 | AC5: 'PARAMETRI ATTIVITA'!$D$100 | AE5: 'PARAMETRI ATTIVITA'!$G$100 | AG5: 'PARAMETRI ATTIVITA'!$I$100 | AK5: 2 | AL5: 5 | AM5: 3000 | AN5: 0 | AQ5: 1.2 | AR5: 1
A6: 4 | B6: 10 | C6: Stabilimenti ed impianti ove si producono e/o impiegano, liquidi infiammabili e/o combustibili con punto di infiammabilità fino a 125 °C, con quantitativi globali in ciclo e/o in deposito superiori a 1 m3 | D6: Volume | E6: m³ | F6: 300 | G6: Infiammabile | H6: 100 | I6: Solo deposito | J6: 0 | K6: Prescrittiva | L6: no | M6: 268.3281573 | AA6: 16 | AB6: 2 | AC6: 'PARAMETRI ATTIVITA'!$D$16 | AD6: 150 | AE6: 'PARAMETRI ATTIVITA'!$G$16 | AF6: 2 | AG6: 'PARAMETRI ATTIVITA'!$I$16 | AH6: 1 | AI6: 100 | AJ6: 0.1 | AK6: 0 | AL6: 0 | AM6: 300 | AN6: 0 | AP6: =+IF(B6=68,1,VLOOKUP(G6,INDIRECT(ADDRESS(AA6,7,1,,"PARAMETRI ATTIVITA") & ":" & +ADDRESS(AA6+5,8,1,,)),2,FALSE)) -> 2 | AQ6: 1 | AR6: 1
D7: Superficie | F7: 300 | G7: Persone | H7: 100 | I7: Non Def. | J7: 0 | K7: Non Normato | L7: no | M7: 0 | AK7: 1 | AL7: 1 | AM7: 300 | AN7: 0 | AP7: =+IF(B7=68,1,VLOOKUP(G7,INDIRECT(ADDRESS(AA7,7,1,,"PARAMETRI ATTIVITA") & ":" & +ADDRESS(AA7+5,8,1,,)),2,FALSE)) ->  | AQ7: 1.2 | AR7: 1
D8: Superficie | F8: 300 | G8: Infiammabile | H8: 100 | I8: Dep. + rivendita | J8: 0 | K8: Non Normato | L8: no | M8: 0 | AK8: 1 | AL8: 1 | AM8: 300 | AN8: 0 | AP8: =+IF(B8=68,1,VLOOKUP(G8,INDIRECT(ADDRESS(AA8,7,1,,"PARAMETRI ATTIVITA") & ":" & +ADDRESS(AA8+5,8,1,,)),2,FALSE)) ->  | AQ8: 1.2 | AR8: 1
J9: TOTALE | M9: =SUM(M3:M8) -> 634.1655425 | AC9: =+ADDRESS(AA3,4,1,,"PARAMETRI ATTIVITA") & ":" & +ADDRESS(AA3+5,12,1,,) -> 'PARAMETRI ATTIVITA'!$D$20:$L$25
AK13: =+ISERROR(VLOOKUP($B3,TabAtt,13,FALSE)) -> FALSE
B14: INSERISCI | D14: INSERISCI | F14: INSERISCI | G14: CONTROLLA | I14: CONTROLLA | M14: SE X o Y NON ESISTONO | AC14: =+IF(F9>0,IF((F3-F9)>0,"(" & F9 & " + "&F3-F9&" x " & F10 &")x" & F11,F3 & "x " & F11),F3) -> 3000 | AD14: =+IF(G3="non def.",""," x" &TEXT(H10,"#0,00")) -> x0,00 | AE14: =+IF(I3="non def.",""," x" & TEXT(J10,"#0,00")) -> x0,00
B15: ATTIVITA' | D15: SOTTOTIPO | F15: QUANTITA' | G15: SE ESISTE X | I15: SE ESISTE Y | M15: SELEZIONA NON DEF.
AF16: nof | AG16: der | AH16: fse
AC17: Non Normato | AD17: 1.2 | AE17: si | AF17: 1.2 | AG17: 1.5 | AH17: 2
AC18: Prescrittiva | AD18: 1 | AE18: no | AF18: 1 | AG18: 1 | AH18: 1
AC19: Prestazionale | AD19: 1.5
D20: Parametro Attività | E20: N. ATTIVITA' | F20: FORMULA? | I20: Costo Orario
D21: =+M9 -> 634.1655425 | E21: =+MAX(A3:A8) -> 4 | I21: 50 | AD21: =+VLOOKUP(E21,$AC$17:$AD$19,2,FALSE) ->  | AE21: =+VLOOKUP(F21,$AE$17:$AH$18,2,FALSE) ->  | AF21: =+VLOOKUP(G21,$AE$17:$AH$18,3,FALSE) ->  | AG21: =+VLOOKUP(H21,$AE$17:$AH$18,4,FALSE) -> 
C24: 7
E25: Compenso = | F25: =+D21*F21*I21 -> 0
J30: =1372*1.22 -> 1673.84

Sheet PARAMETRI ATTIVITA (2) (hidden)
A1: N. Attività | D1: Parametro Principale (SxK) | I1: Parametro (X) | K1: Parametro (Y)
B2: Descrizione Attività | C2: RifRiga | D2: Tipologia | E2: Un.Mis | F2: K | G2: Limite | H2: Ecc. | I2: Tipologia | J2: Valore | K2: Tipologia | L2: Valore | O2: Asintoto | P2: Partenza | V2: =SCARTO(INDIRETTO($X$2);0;0;$I$14) | AB2: x NEC | AC2: Y NEC | AD2: F | AG2: SEL Y | AJ2: SEL X
A3: 1 | B3: Stabilimenti ed impianti ove si producono e/o impiegano gas infiammabili e/o comburenti con quantità globali in ciclo superiori a 25 Nm3/h | C3: =+ROW(A3) -> 3 | D3: Stabilimento [Superficie] | E3: m² | F3: 6 | G3: 1000 | H3: 0.2 | I3: Infiammabile | J3: 2 | K3: Direttiva Seveso | L3: 3 | U3: =+C3 -> 3 | V3: =SCARTO("D" & $V2 ;0;0;$W$2) | AB3: 0 | AC3: 0 | AD3: =+IF(O3="",J3,"F") -> 2 | AE3: =+IF(AB3=1,I3 & CHAR(10) & "",I3) -> Infiammabile | AG3: =+VLOOKUP($X3,A3:T23,8) ->  | AH3: =+IF(I3="","",AE3) -> Infiammabile
C4: =+ROW(A4) -> 4 | D4: Solo Deposito [Quantità] | E4: Nm³ | F4: 100 | I4: Comburente | J4: 1 | K4: Non Direttiva Seveso | L4: 1 | U4: 4 | AB4: 0 | AC4: 0 | AD4: =+IF(O4="",J4,"F") -> 1 | AE4: Comburente | AH4: =+IF(I4="","",AE4) -> Comburente
A5: 2 | B5: Impianti di compressione o di decompressione dei gas infiammabili e/o comburenti con potenzialità superiore a 50 Nm3/h, con esclusione dei sistemi di riduzione del gas naturale inseriti nelle reti di distribuzione con pressione di esercizio non superiore a 0,5 MPa | C5: =+ROW(A5) -> 5 | D5: Ciclo [Superficie] | E5: m² | F5: 6 | G5: 1000 | H5: 0.2 | I5: Infiammabile | J5: 2 | K5: Direttiva Seveso | L5: 3 | U5: 5 | AB5: 0 | AC5: 0 | AD5: 2 | AE5: Infiammabile | AH5: Infiammabile
C6: 6 | D6: Solo Deposito [Quantità] | E6: Nm³ | F6: 4 | I6: Comburente | J6: 1 | K6: Non Direttiva Seveso | L6: 1 | U6: 6 | AB6: 0 | AC6: 0 | AD6: 1 | AE6: Comburente | AH6: Comburente
A7: 3 | B7: Impianti di riempimento, depositi, rivendite di gas infiammabili in recipienti mobili: compressi con capacità geometrica complessiva superiore o uguale a 0,75 m3; disciolti o liquefatti per quantitativi in massa complessivi superiori o uguali a 75 kg | C7: 7 | D7: Superficie | E7: m² | F7: 6 | G7: 200 | H7: 0.1 | I7: Solo Deposito | J7: 1 | K7: Direttiva Seveso | L7: 3 | U7: 7 | AB7: 0 | AC7: 0 | AD7: 1 | AE7: Solo Deposito | AH7: Solo Deposito
C8: 8 | I8: Deposito e rivendita | J8: 1.2 | K8: Non Direttiva Seveso | L8: 1 | U8: 8 | AB8: 0 | AC8: 0 | AD8: 1.2 | AE8: Deposito e rivendita | AH8: Deposito e rivendita
A9: 4 | B9: Depositi di gas infiammabili in serbatoi fissi: compressi per capacità geometrica complessiva superiore o uguale a 0, 75 m3; disciolti o liquefatti per capacità geometrica complessiva superiore o uguale a 0,3 m3 | C9: 9 | D9: Volume | E9: m³ | F9: 300 | G9: 200 | H9: 0.1 | I9: Solo Deposito | J9: 1 | K9: Direttiva Seveso | L9: 3 | U9: 9 | AB9: 0 | AC9: 0 | AD9: 1 | AE9: Solo Deposito | AH9: Solo Deposito
C10: 10 | I10: Deposito e rivendita | J10: 1.2 | K10: Non Direttiva Seveso | L10: 1 | U10: 10 | AB10: 0 | AC10: 0 | AD10: 1.2 | AE10: Deposito e rivendita | AH10: Deposito e rivendita
A11: 5 | B11: Depositi di gas comburenti compressi e/o liquefatti in serbatoi fissi e/o recipienti mobili per capacità geometrica complessiva superiore o uguale a 3 m3 | C11: 11 | D11: Capacità | E11: m³ | F11: 300 | G11: 200 | H11: 0.1 | I11: Direttiva Seveso | J11: 3 | U11: 11 | AB11: 0 | AC11: 0 | AD11: 3 | AE11: Direttiva Seveso | AH11: Direttiva Seveso
C12: 12 | I12: Non Direttiva Seveso | J12: 1 | U12: 12 | AB12: 0 | AC12: 0 | AD12: 1 | AE12: Non Direttiva Seveso | AH12: Non Direttiva Seveso
A13: 6 | B13: Reti di trasporto e di distribuzione di gas infiammabili, compresi quelli di origine petrolifera o chimica, con esclusione delle reti di distribuzione e dei relativi impianti con pressione di esercizio non superiore a 0,5 Mpa | C13: 13 | D13: Colonnine? | E13: n | F13: 100 | U13: 13 | AB13: 0 | AC13: 0 | AD13: 0 | AE13: 0
A14: 7 | B14: Centrali di produzione di idrocarburi liquidi e gassosi e di stoccaggio sotterraneo di gas naturale, piattaforme fisse e strutture fisse assimilabili, di perforazione e/o produzione di idrocarburi di cui al decreto del Presidente della Repubblica 24 maggio 1979, n. 886 ed al decreto legislativo 25 novembre 1996, n. 624 | C14: 14 | D14: Superficie? | E14: m² | F14: 8 | U14: 14 | AB14: 0 | AC14: 0 | AD14: 0 | AE14: 0
A15: 8 | B15: Oleodotti con diametro superiore a 100 mm | C15: 15 | D15: Estensione | E15: m | F15: 20 | Q15: =+VLOOKUP(H15,INDIRECT(G15),2,FALSE) ->  | U15: 15 | AB15: 0 | AC15: 0 | AD15: 0 | AE15: 0
A16: 9 | B16: Officine e laboratori con saldatura e taglio dei metalli utilizzanti gas infiammabili e/o comburenti, con oltre 5 addetti alla mansione specifica di saldatura o taglio | C16: 16 | D16: Superficie | E16: m² | F16: 4 | G16: 1000 | H16: 0.2 | U16: 16 | AB16: 0 | AC16: 0 | AD16: 0 | AE16: 0
A17: 10 | B17: Stabilimenti ed impianti ove si producono e/o impiegano, liquidi infiammabili e/o combustibili con punto di infiammabilità fino a 125 °C, con quantitativi globali in ciclo e/o in deposito superiori a 1 m3 | C17: 17 | D17: Superficie | E17: m² | F17: 6 | G17: 1000 | H17: 0.1 | I17: Infiammabile | J17: 2 | U17: 17 | AB17: 0 | AC17: 0 | AD17: 2 | AE17: Infiammabile | AH17: Infiammabile
C18: 18 | I18: Combustibile | J18: 1 | U18: 18 | AB18: 0 | AC18: 0 | AD18: 1 | AE18: Combustibile | AH18: Combustibile
A19: 11 | B19: Stabilimenti ed impianti per la preparazione di oli lubrificanti, oli diatermici e simili, con punto di infiammabilità superiore a 125 °C, con quantitativi globali in ciclo e/o in deposito superiori a 5 m3 | C19: 19 | D19: Superficie | E19: m² | F19: 6 | G19: 1000 | H19: 0.1 | I19: Infiammabile | J19: 2 | U19: 19 | AB19: 0 | AC19: 0 | AD19: 2 | AE19: Infiammabile | AH19: Infiammabile
C20: 20 | I20: Combustibile | J20: 1 | U20: 20 | AB20: 0 | AC20: 0 | AD20: 1 | AE20: Combustibile | AH20: Combustibile
A21: 12 | B21: Depositi e/o rivendite di liquidi infiammabili e/o combustibili e/o oli lubrificanti, diatermici, di qualsiasi derivazione, di capacità geometrica complessiva superiore a 1 m3 | C21: 21 | D21: Volume | E21: m³ | F21: 150 | G21: 100 | H21: 0.1 | I21: Infiammabile | J21: 1.5 | K21: Solo deposito | L21: 1 | U21: 21 | AB21: 0 | AC21: 0 | AD21: 1.5 | AE21: Infiammabile | AH21: Infiammabile
C22: 22 | I22: Combustibile | J22: 1 | K22: Dep. + rivendita | L22: 1.5 | U22: 22 | AB22: 0 | AC22: 0 | AD22: 1 | AE22: Combustibile | AH22: Combustibile
A23: 13 | B23: Impianti fissi di distribuzione carburanti per l'autotrazione, la nautica e l'aeronautica; contenitori - distributori rimovibili di carburanti liquidi: Impianti di distribuzione carburanti liquidi; Impianti fissi di distribuzione carburanti gassosi e di tipo misto (liquidi e gassosi). | C23: 23 | D23: Colonnine | E23: n | F23: 100 | I23: Infiammabile | J23: 1.5 | K23: Solo Liquidi | L23: 1 | U23: 23 | AB23: 0 | AC23: 0 | AD23: 1.5 | AE23: Infiammabile | AH23: Infiammabile
C24: 24 | I24: Combustibile | J24: 1 | K24: Liquidi e Gas | L24: 1.5 | U24: 24 | AB24: 0 | AC24: 0 | AD24: 1 | AE24: Combustibile | AH24: Combustibile
A25: 14 | B25: Officine o laboratori per la verniciatura con vernici infiammabili e/o combustibili con oltre 5 addetti. | C25: 25 | D25: Superficie | E25: m² | F25: 4 | G25: 300 | H25: 0.1 | I25: Infiammabile | J25: 1.5 | U25: 25 | AB25: 0 | AC25: 0 | AD25: 1.5 | AE25: Infiammabile | AH25: Infiammabile
C26: 26 | I26: Combustibile | J26: 1 | U26: 26 | AB26: 0 | AC26: 0 | AD26: 1 | AE26: Combustibile | AH26: Combustibile
A27: 15 | B27: Depositi e/o rivendite di alcoli con concentrazione superiore al 60% in volume di capacità geometrica superiore a 1 m3 | C27: 27 | D27: Volume | E27: m³ | F27: 150 | G27: 100 | H27: 0.1 | I27: Infiammabile | J27: 1.5 | K27: Solo deposito | L27: 1 | U27: 27 | AB27: 0 | AC27: 0 | AD27: 1.5 | AE27: Infiammabile | AH27: Infiammabile
C28: 28 | I28: Combustibile | J28: 1 | K28: Dep. + rivendita | L28: 1.5 | U28: 28 | AB28: 0 | AC28: 0 | AD28: 1 | AE28: Combustibile | AH28: Combustibile
A29: 16 | B29: Stabilimenti di estrazione con solventi infiammabili e raffinazione di oli e grassi vegetali ed animali, con quantitativi globali di solventi in ciclo e/o in deposito superiori a 0,5 m3 | C29: 29 | D29: Superficie? | E29: m² | F29: 6 | U29: 29 | AB29: 0 | AC29: 0 | AD29: 0 | AE29: 0
A30: 17 | B30: Stabilimenti ed impianti ove si producono, impiegano o detengono sostanze esplodenti classificate come tali dal regolamento di esecuzione del testo unico delle leggi di pubblica sicurezza approvato con regio decreto 6 maggio 1940, n. 635, e successive modificazioni ed integrazioni | C30: 30 | D30: Superficie | E30: m² | F30: 8 | G30: 1000 | H30: 0.1 | U30: 30 | AB30: 0 | AC30: 0 | AD30: 0 | AE30: 0
A31: 18 | B31: Esercizi di minuta vendita e/o depositi di sostanze esplodenti classificate come tali dal regolamento di esecuzione del testo unico delle leggi di pubblica sicurezza approvato con regio decreto 6 maggio 1940, n. 635, e successive modificazioni ed integrazioni. Esercizi di vendita di artifici pirotecnici declassificati in "libera vendita" con quantitativi complessivi in vendita e/o deposito superiori a 500 kg, comprensivi degli imballaggi; | C31: 31 | D31: Superficie | E31: m² | F31: 8 | G31: 1000 | H31: 0.1 | I31: Libera vendita | J31: 1 | U31: 31 | AB31: 0 | AC31: 0 | AD31: 1 | AE31: Libera vendita | AH31: Libera vendita
C32: 32 | I32: Non Libera vend. | J32: 2 | U32: 32 | AB32: 0 | AC32: 0 | AD32: 2 | AE32: Non Libera vend. | AH32: Non Libera vend.
A33: 19 | B33: Stabilimenti ed impianti ove si producono, impiegano o detengono sostanze instabili che possono dar luogo da sole a reazioni pericolose in presenza o non di catalizzatori ivi compresi i perossidi organici | C33: 33 | D33: Superficie? | E33: m² | F33: 8 | G33: 5000 | H33: 0.1 | Q33: Potremmo mettere i Kg invece della superficie? | U33: 33 | AB33: 0 | AC33: 0 | AD33: 0 | AE33: 0
A34: 20 | B34: Stabilimenti ed impianti ove si producono, impiegano o detengono nitrati di ammonio, di metalli alcalini e alcolino-terrosi, nitrato di piombo e perossidi inorganici | C34: 34 | D34: Superficie? | E34: m² | F34: 8 | G34: 5000 | H34: 0.1 | Q34: Potremmo mettere i Kg invece della superficie? | U34: 34 | AB34: 0 | AC34: 0 | AD34: 0 | AE34: 0
A35: 21 | B35: Stabilimenti ed impianti ove si producono, impiegano o detengono sostanze soggette all'accensione spontanea e/o sostanze che a contatto con l'acqua sviluppano gas infiammabili | C35: 35 | D35: Superficie? | E35: m² | F35: 8 | G35: 5000 | H35: 0.1 | Q35: Potremmo mettere i Kg invece della superficie? | U35: 35 | AB35: 0 | AC35: 0 | AD35: 0 | AE35: =+IF(AB35=1,I35 & CHAR(10) & "",I35) -> 0
A36: 22 | B36: Stabilimenti ed impianti ove si produce acqua ossigenata con concentrazione superiore al 60% di perossido di idrogeno | C36: 36 | D36: Superficie? | E36: m² | F36: 8 | G36: 5000 | H36: 0.1 | Q36: Potremmo mettere i m³ invece della superficie? | U36: 36 | AB36: 0 | AC36: 0 | AD36: 0 | AE36: 0
A37: 23 | B37: Stabilimenti ed impianti ove si produce, impiega e/o detiene fosforo e/o sesquisolfuro di fosforo | C37: 37 | D37: Superficie? | E37: m² | F37: 8 | G37: 5000 | H37: 0.1 | Q37: Potremmo mettere i Kg invece della superficie? | U37: 37 | AB37: 0 | AC37: 0 | AD37: 0 | AE37: 0
A38: 24 | B38: Stabilimenti ed impianti per la macinazione e la raffinazione dello zolfo; depositi di zolfo con potenzialità superiore a 10.000 kg | C38: 38 | D38: Superficie? | E38: m² | F38: 8 | G38: 5000 | H38: 0.1 | Q38: Potremmo mettere i Kg invece della superficie? | U38: 38 | AB38: 0 | AC38: 0 | AD38: 0 | AE38: 0
A39: 25 | B39: Fabbriche di fiammiferi; depositi di fiammiferi con quantitativi in massa superiori a 500 kg | C39: 39 | D39: Superficie? | E39: m² | F39: 8 | G39: 5000 | H39: 0.1 | Q39: Potremmo mettere i Kg invece della superficie? | U39: 39 | AB39: 0 | AC39: 0 | AD39: 0 | AE39: 0
A40: 26 | B40: Stabilimenti ed impianti ove si produce, impiega o detiene magnesio, elektron e altre leghe ad alto tenore di magnesio | C40: 40 | D40: Superficie? | E40: m² | F40: 8 | G40: 5000 | H40: 0.1 | Q40: Potremmo mettere i Kg invece della superficie? | U40: 40 | AB40: 0 | AC40: 0 | AD40: 0 | AE40: 0
A41: 27 | B41: Mulini per cereali ed altre macinazioni con potenzialità giornaliera superiore a 20.000 kg; Depositi di cereali e di altre macinazioni con quantitativi in massa superiori a 50.000 kg | C41: 41 | D41: Superficie | E41: m² | F41: 6 | G41: 1000 | H41: 0.1 | I41: massa [t] Q | J41: =+"X =(" &O41&"Q-"&P41&")/Q)" -> X =(2Q-20)/Q) | K41: Deposito solamente | L41: 0.6 | O41: 2 | P41: 20 | Q41: Y = (2Q-20)/Q [curva asintotica verso 2] | U41: 41 | AA41: Y = (2Q-20)/Q | AB41: 1 | AC41: 0 | AD41: F | AE41: massa [t] Q | AH41: massa [t] Q
C42: 42 | K42: Dep. + mulino | L42: 1 | U42: 42 | AB42: 1 | AC42: 0 | AD42: 0
A43: 28 | B43: Impianti per l'essiccazione di cereali e di vegetali in genere con depositi di prodotto essiccato con quantitativi in massa superiori a 50.000 kg | C43: 43 | D43: Superficie | E43: m² | F43: 6 | G43: 1000 | H43: 0.1 | I43: massa [t] Q | J43: =+"X =(" &O43&"Q-"&P43&")/Q)" -> X =(2Q-50)/Q) | O43: 2 | P43: 50 | Q43: Y = (2Q-50)/Q [curva asintotica verso 2] | U43: 43 | AB43: 1 | AC43: 0 | AD43: F | AE43: massa [t] Q | AH43: massa [t] Q
C44: 44 | U44: 44 | AB44: 1 | AC44: 0 | AD44: 0
A45: 29 | B45: Stabilimenti ove si producono surrogati del caff | C45: 45 | D45: Superficie? | E45: m² | F45: 6 | G45: 2000 | H45: 0.1 | U45: 45 | AB45: 0 | AC45: 0 | AD45: 0 | AE45: 0
A46: 30 | B46: Zuccherifici e raffinerie dello zucchero | C46: 46 | D46: Superficie? | E46: m² | F46: 6 | G46: 2000 | H46: 0.1 | U46: 46 | AB46: 0 | AC46: 0 | AD46: 0 | AE46: 0
A47: 31 | B47: Pastifici e/o riserie con produzione giornaliera superiore a 50.000 kg | C47: 47 | D47: Superficie? | E47: m² | F47: 6 | G47: 2000 | H47: 0.1 | I47: massa [t] Q | J47: =+"X =(" &O47&"Q-"&P47&")/Q)" -> X =(2Q-50)/Q) | O47: 2 | P47: 50 | Q47: Y = (2Q-50)/Q [curva asintotica verso 2] | U47: 47 | AB47: 1 | AC47: 0 | AD47: F | AE47: massa [t] Q | AH47: massa [t] Q
A48: 32 | B48: Stabilimenti ed impianti ove si lavora e/o detiene foglia di tabacco con processi di essiccazione con oltre 100 addetti o con quantitativi globali in ciclo e/o in deposito superiori a 50.000 kg | C48: 48 | D48: Superficie? | E48: m² | F48: 6 | G48: 2000 | H48: 0.1 | I48: massa [t] Q | J48: =+"X =(" &O48&"Q-"&P48&")/Q)" -> X =(2Q-50)/Q) | O48: 2 | P48: 50 | Q48: Y = (2Q-50)/Q [curva asintotica verso 2] | U48: 48 | AB48: 1 | AC48: 0 | AD48: F | AE48: massa [t] Q | AH48: massa [t] Q
A49: 33 | B49: Stabilimenti ed impianti per la produzione della carta e dei cartoni e di allestimento di prodotti cartotecnici in genere con oltre 25 addetti o con materiale in lavorazione e/o in deposito superiore a 50.000 kg | C49: 49 | D49: Superficie | E49: m² | F49: 6 | G49: 2000 | H49: 0.1 | I49: massa [t] Q | J49: =+"X =(" &O49&"Q-"&P49&")/Q)" -> X =(2Q-50)/Q) | K49: Deposito di carta | L49: 1 | O49: 2 | P49: 50 | Q49: Y = (2Q-50)/Q [curva asintotica verso 2] | U49: 49 | AB49: 1 | AC49: 0 | AD49: F | AE49: massa [t] Q | AH49: massa [t] Q
C50: 50 | K50: Deposito e stabilimento | L50: 1.5 | U50: 50 | AB50: 1 | AC50: 0 | AD50: 0
A51: 34 | B51: Depositi di carta, cartoni e prodotti cartotecnici, archivi di materiale cartaceo, biblioteche, depositi per la cernita della carta usata, di stracci di cascami e di fibre tessili per l'industria della carta, con quantitativi in massa superiori a 5.000 kg | C51: 51 | D51: Superficie | E51: m² | F51: 4 | G51: 2000 | H51: 0.1 | I51: massa [t] Q | J51: =+"X =(" &O51&"Q-"&P51&")/Q)" -> X =(2Q-50)/Q) | K51: Depositi/archivi | L51: 1 | O51: 2 | P51: 50 | Q51: Y = (2Q-50)/Q [curva asintotica verso 2] | U51: 51 | AB51: 1 | AC51: 0 | AD51: F | AE51: massa [t] Q | AH51: massa [t] Q
K52: Biblioteche | L52: 2 | AB52: 1 | AC52: 0 | AD52: 0
A53: 35 | B53: Stabilimenti, impianti, depositi ove si producono, impiegano e/o detengono carte fotografiche, calcografiche, eliografiche e cianografiche, pellicole cinematografiche, radiografiche e fotografiche con materiale in lavorazione e/o in deposito superiore a 5.000 kg | C53: 53 | D53: Superficie | E53: m² | F53: 6 | G53: 2000 | H53: 0.1 | I53: massa [t] Q | J53: =+"X =(" &O53&"Q-"&P53&")/Q)" -> X =(2Q-5)/Q) | K53: Solo deposito | L53: 1 | O53: 2 | P53: 5 | Q53: Y = (2Q-5)/Q [curva asintotica verso 2] | U53: 53 | AB53: 1 | AC53: 0 | AD53: F | AE53: massa [t] Q | AH53: massa [t] Q
C54: 54 | K54: Deposito e Impianto | L54: 1.3 | U54: 54 | AB54: 1 | AC54: 0 | AD54: 0
A55: 36 | B55: Depositi di legnami da costruzione e da lavorazione, di legna da ardere, di paglia, di fieno, di canne, di fascine, di carbone vegetale e minerale, di carbonella, di sughero e di altri prodotti affini con quantitativi in massa superiori a 50.000 kg con esclusione dei depositi all'aperto con distanze di sicurezza esterne superiori a 100 m | C55: 55 | D55: Superficie | E55: m² | F55: 4 | G55: 1000 | H55: 0.1 | I55: massa [t] Q | J55: =+"X =(" &O55&"Q-"&P55&")/Q)" -> X =(2Q-50)/Q) | O55: 2 | P55: 50 | Q55: Y = (2Q-50)/Q [curva asintotica verso 2] | U55: 55 | AB55: 1 | AC55: 0 | AD55: F | AE55: massa [t] Q | AH55: massa [t] Q
A56: 37 | B56: Stabilimenti e laboratori per la lavorazione del legno con materiale in lavorazione e/o in deposito superiore a 5.000 kg | C56: 56 | D56: Superficie | E56: m² | F56: 7 | G56: 1000 | H56: 0.1 | I56: massa [t] Q | J56: =+"X =(" &O56&"Q-"&P56&")/Q)" -> X =(2Q-5)/Q) | K56: Solo deposito | L56: 1 | O56: 2 | P56: 5 | Q56: Y = (2Q-5)/Q [curva asintotica verso 2] | U56: 56 | AB56: 1 | AC56: 0 | AD56: F | AE56: massa [t] Q | AH56: massa [t] Q
C57: 57 | K57: Dep + Laboratorio | L57: 1.5 | U57: 57 | AB57: 1 | AC57: 0 | AD57: 0
A58: 38 | B58: Stabilimenti ed impianti ove si producono, lavorano e/o detengono fibre tessili e tessuti naturali e artificiali, tele cerate, linoleum e altri prodotti affini, con quantitativi in massa superiori a 5.000 kg | C58: 58 | D58: Superficie | E58: m² | F58: 6 | G58: 1000 | H58: 0.1 | I58: massa [t] Q | J58: =+"X =(" &O58&"Q-"&P58&")/Q)" -> X =(2Q-5)/Q) | K58: Solo deposito | L58: 1 | O58: 2 | P58: 5 | Q58: Y = (2Q-5)/Q [curva asintotica verso 2] | U58: 58 | AB58: 1 | AC58: 0 | AD58: F | AE58: massa [t] Q | AH58: massa [t] Q
C59: 59 | K59: Dep + Stabilimento | L59: 1.5 | U59: 59 | AB59: 1 | AC59: 0 | AD59: 0
A60: 39 | B60: Stabilimenti per la produzione di arredi, di abbigliamento, della lavorazione della pelle e calzaturifici, con oltre 25 addetti | C60: 60 | D60: Superficie | E60: m² | F60: 8 | G60: 1000 | H60: 0.1 | U60: 60 | AB60: 0 | AC60: 0 | AD60: 0 | AE60: 0
A61: 40 | B61: Stabilimenti ed impianti per la preparazione del crine vegetale, della trebbia e simili, lavorazione della paglia, dello sparto e simili, lavorazione del sughero, con quantitativi in massa in lavorazione o in deposito superiori a 5.000 kg | C61: 61 | D61: Superficie | E61: m² | F61: 8 | G61: 1000 | H61: 0.1 | I61: massa [t] Q | J61: =+"X =(" &O61&"Q-"&P61&")/Q)" -> X =(2Q-5)/Q) | K61: Solo deposito | L61: 0.6 | O61: 2 | P61: 5 | Q61: Y = (2Q-5)/Q [curva asintotica verso 2] | U61: 61 | AB61: 1 | AC61: 0 | AD61: F | AE61: massa [t] Q | AH61: massa [t] Q
C62: 62 | K62: Dep + Stabilimento | L62: 1 | U62: 62 | AB62: 1 | AC62: 0 | AD62: 0
A63: 41 | B63: Teatri e studi per le riprese cinematografiche e televisive | C63: 63 | D63: Superficie | E63: m² | F63: 6 | G63: 2000 | H63: 0.1 | U63: 63 | AB63: 0 | AC63: 0 | AD63: 0 | AE63: 0
A64: 42 | B64: Laboratori per la realizzazione di attrezzerie e scenografie, compresi i relativi depositi, di superficie complessiva superiore a 200 m2 | C64: 64 | D64: Superficie | E64: m² | F64: 6 | G64: 1000 | H64: 0.1 | U64: 64 | AB64: 0 | AC64: 0 | AD64: 0 | AE64: 0
A65: 43 | B65: Stabilimenti ed impianti per la produzione, lavorazione e rigenerazione della gomma e/o laboratori di vulcanizzazione di oggetti di gomma, con quantitativi in massa superiori a 5.000 kg; Depositi di prodotti della gomma, pneumatici e simili, con quantitativi in massa superiori a 10.000 kg | C65: 65 | D65: Superficie | E65: m² | F65: 6 | G65: 1000 | H65: 0.1 | I65: massa [t] Q | J65: =+"X =(" &O65&"Q-"&P65&")/Q)" -> X =(2Q-5)/Q) | K65: Solo deposito | L65: 0.6 | O65: 2 | P65: 5 | Q65: Y = (2Q-5)/Q [curva asintotica verso 2] | U65: 65 | AB65: 0 | AC65: 0 | AD65: F | AE65: massa [t] Q | AH65: massa [t] Q
C66: 66 | K66: Dep + Stabilimento | L66: 1 | U66: 66 | AB66: 0 | AC66: 0 | AD66: 0 | AE66: =+IF(AB66=1,I66 & CHAR(10) & "",I66) -> 0
A67: 44 | B67: Stabilimenti, impianti, depositi ove si producono, lavorano e/o detengono materie plastiche, con quantitativi in massa superiori a 5.000 kg | C67: 67 | D67: Superficie | E67: m² | F67: 6 | G67: 1000 | H67: 0.1 | I67: massa [t] Q | J67: =+"X =(" &O67&"Q-"&P67&")/Q)" -> X =(2Q-5)/Q) | K67: Solo deposito | L67: 0.6 | O67: 2 | P67: 5 | Q67: Y = (2Q-5)/Q [curva asintotica verso 2] | U67: =+C67 -> 67 | AB67: 1 | AC67: 0 | AD67: =+IF(O67="",J67,"F") -> F | AE67: massa [t] Q | AH67: =+IF(I67="","",AE67) -> massa [t] Q
C68: =+ROW(A68) -> 68 | K68: Dep + Stabilimento | L68: 1 | U68: 68 | AB68: 1 | AC68: 0 | AD68: 0
A69: 45 | B69: Stabilimenti ed impianti ove si producono e lavorano resine sintetiche e naturali, fitofarmaci, coloranti organici e intermedi e prodotti farmaceutici con l'impiego di solventi ed altri prodotti infiammabili | C69: 69 | D69: Superficie | E69: m² | F69: 6 | G69: 1000 | H69: 0.1 | U69: 69 | AB69: 0 | AC69: 0 | AD69: 0 | AE69: 0
A70: 46 | B70: Depositi di fitofarmaci e/o di concimi chimici a base di nitrati e/o fosfati con quantitativi in massa superiori a 50.000 kg | C70: 70 | D70: Superficie | E70: m² | F70: 4 | G70: 300 | H70: 0.1 | I70: massa [t] Q | J70: =+"X =(" &O70&"Q-"&P70&")/Q)" -> X =(2Q-50)/Q) | O70: 2 | P70: 50 | Q70: Y = (2Q-50)/Q [curva asintotica verso 2] | U70: 70 | AB70: 1 | AC70: 0 | AD70: F | AE70: massa [t] Q | AH70: massa [t] Q
A71: 47 | B71: Stabilimenti ed impianti per la fabbricazione di cavi e conduttori elettrici isolati, con quantitativi in lavorazione e/o in deposito superiori a 10.000 kg; Depositi e/o rivendite di cavi elettrici isolati con quantitativi superiori a 10.000 kg | C71: 71 | D71: Superficie | E71: m² | F71: 6 | G71: 1000 | H71: 0.1 | I71: massa [t] Q | J71: =+"X =(" &O71&"Q-"&P71&")/Q)" -> X =(2Q-10)/Q) | K71: Solo deposito | L71: 0.6 | O71: 2 | P71: 10 | Q71: Y = (2Q-10)/Q [curva asintotica verso 2] | U71: 71 | AB71: 1 | AC71: 0 | AD71: F | AE71: massa [t] Q | AH71: massa [t] Q
C72: 72 | K72: Dep + impianto | L72: 1 | U72: 72 | AB72: 0 | AC72: 0 | AD72: 0
A73: 48 | B73: Centrali termoelettriche, macchine elettriche fisse con presenza di liquidi isolanti combustibili in quantitativi superiori a 1 m³ | C73: 73 | D73: Potenza | E73: MW | F73: 30 | U73: 73 | AB73: 0 | AC73: 0 | AD73: 0 | AE73: 0
A74: 49 | B74: Gruppi per la produzione di energia elettrica sussidiaria con motori endotermici ed impianti di cogenerazione di potenza complessiva superiore a 25 kW | C74: 74 | D74: Potenza | E74: kW | F74: 4 | I74: Isolato o all'esterno | J74: 0.6 | U74: 74 | AB74: 0 | AC74: 0 | AD74: 0.6 | AE74: Isolato o all'esterno | AH74: Isolato o all'esterno
C75: 75 | I75: All'intero di edificio | J75: 1 | U75: 75 | AB75: 0 | AC75: 0 | AD75: 1 | AE75: All'intero di edificio | AH75: All'intero di edificio
A76: 50 | B76: Stabilimenti ed impianti ove si producono lampade elettriche e simili, pile ed accumulatori elettrici e simili, con oltre 5 addetti | C76: 76 | D76: Superficie | E76: m² | F76: 6 | G76: 1000 | H76: 0.1 | U76: 76 | AB76: 0 | AC76: 0 | AD76: 0 | AE76: 0
A77: 51 | B77: Stabilimenti siderurgici e per la produzione di altri metalli con oltre 5 addetti; attività comportanti lavorazioni a caldo di metalli con oltre 5 addetti ad esclusione dei laboratori artigiani di oreficeria ed argenteria fino a 25 addetti | C77: 77 | D77: Superficie | E77: m² | F77: 6 | G77: 1000 | H77: 0.2 | U77: 77 | AB77: 0 | AC77: 0 | AD77: 0 | AE77: 0
A78: 52 | B78: Stabilimenti, con oltre 5 addetti, per la costruzione di aeromobili, veicoli a motore, materiale rotabile ferroviario e tramviario, carrozzerie e rimorchi per autoveicoli; cantieri navali con oltre 5 addetti | C78: 78 | D78: Superficie | E78: m² | F78: 8 | G78: 1000 | H78: 0.1 | U78: 78 | AB78: 0 | AC78: 0 | AD78: 0 | AE78: 0
A79: 53 | B79: Officine per la riparazione di: veicoli a motore, rimorchi per autoveicoli e carrozzerie, di superficie coperta superiore a 300 m2; materiale rotabile tramviario e di aeromobili, di superficie coperta superiore a 1000 m2 | C79: 79 | D79: Superficie | E79: m² | F79: 6 | G79: 1000 | H79: 0.1 | I79: Solo Veicoli a motore | J79: 1 | U79: 79 | AB79: 0 | AC79: 0 | AD79: 1 | AE79: Solo Veicoli a motore | AH79: Solo Veicoli a motore
C80: 80 | I80: Aeromobili o treni | J80: 0.6 | U80: 80 | AB80: 0 | AC80: 0 | AD80: 0.6 | AE80: Aeromobili o treni | AH80: Aeromobili o treni
A81: 54 | B81: Officine meccaniche per lavorazioni a freddo con oltre 25 addetti | C81: 81 | D81: Superficie | E81: m² | F81: 6 | G81: 1000 | H81: 0.1 | U81: 81 | AB81: 0 | AC81: 0 | AD81: 0 | AE81: 0
A82: 55 | B82: Attività di demolizioni di veicoli e simili con relativi depositi, di superficie superiore a 3000 m² | C82: 82 | D82: Superficie | E82: m² | F82: 6 | G82: 1000 | H82: 0.1 | U82: 82 | AB82: 0 | AC82: 0 | AD82: 0 | AE82: 0
A83: 56 | B83: Stabilimenti ed impianti ove si producono laterizi, maioliche, porcellane e simili con oltre 25 addetti | C83: 83 | D83: Superficie | E83: m² | F83: 6 | G83: 1000 | H83: 0.1 | U83: 83 | AB83: 0 | AC83: 0 | AD83: 0 | AE83: 0
A84: 57 | B84: Cementifici con oltre 25 addetti | C84: 84 | D84: Superficie | E84: m² | F84: 6 | G84: 1000 | H84: 0.1 | U84: 84 | AB84: 0 | AC84: 0 | AD84: 0 | AE84: 0
A85: 58 | B85: Pratiche di cui al D.Lgs. 230/95 s.m.i. soggette a provvedimenti autorizzativi (art. 27 del D.Lgs. 230/95 ed art. 13 legge 31 dicembre 1962, n. 1860) | C85: 85 | D85: Superficie | E85: m² | F85: 6 | G85: 1000 | H85: 0.1 | I85: Categoria B | J85: 1 | U85: 85 | AB85: 0 | AC85: 0 | AD85: 1 | AE85: Categoria B | AH85: Categoria B
C86: 86 | I86: Categoria A | J86: 1.5 | U86: 86 | AB86: 0 | AC86: 0 | AD86: 1.5 | AE86: Categoria A | AH86: Categoria A
A87: 59 | B87: Autorimesse adibite al ricovero di mezzi utilizzati per il trasporto di materie fissili speciali e di materie radioattive (art. 5 della legge 31 dicembre 1962, n. 1860, sostituito dall'art. 2 del decreto del Presidente della Repubblica 30 dicembre 1965, n. 1704; art. 21 del D.Lgs. 230/95) | C87: 87 | D87: Superficie | E87: m² | F87: 4 | G87: 1000 | H87: 0.1 | U87: 87 | AB87: 0 | AC87: 0 | AD87: 0 | AE87: 0
A88: 60 | B88: Impianti di deposito delle materie nucleari ed attività assoggettate agli artt. 33 e 52 del decreto legislativo 17 marzo 1995, n. 230 e s.m.i. , con esclusione dei depositi in corso di spedizione | C88: 88 | D88: Superficie | E88: m² | F88: 6 | G88: 1000 | H88: 0.1 | U88: 88 | AB88: 0 | AC88: 0 | AD88: 0 | AE88: 0
A89: 61 | B89: Impianti nei quali siano detenuti combustibili nucleari o prodotti o residui radioattivi [art. 1, lettera b) della legge 31 dicembre 1962, n. 1860] | C89: 89 | D89: Superficie | E89: m² | F89: 6 | G89: 1000 | H89: 0.1 | U89: 89 | AB89: 0 | AC89: 0 | AD89: 0 | AE89: 0
A90: 62 | B90: Impianti relativi all'impiego pacifico dell'energia nucleare ed attività che comportano pericoli di radiazioni ionizzanti derivanti dal predetto impiego: impianti nucleari | C90: 90 | D90: Superficie | E90: m² | F90: 10 | G90: 1000 | H90: 0.1 | U90: 90 | AB90: 0 | AC90: 0 | AD90: 0 | AE90: 0
A91: 63 | B91: Stabilimenti per la produzione, depositi di sapone, di candele e di altri oggetti di cera e di paraffina, di acidi grassi, di glicerina grezza quando non sia prodotta per idrolisi, di glicerina | C91: 91 | D91: Superficie | E91: m² | F91: 4 | G91: 1000 | H91: 0.1 | I91: massa [kg] Q | J91: =+"X =(" &O91&"Q-"&P91&")/Q)" -> X =(2Q-500)/Q) | O91: 2 | P91: 500 | Q91: Y = (2Q-500)/Q [curva asintotica verso 2] | U91: 91 | AB91: 0 | AC91: 0 | AD91: F | AE91: massa [kg] Q | AH91: massa [kg] Q
A92: 64 | B92: Centri informatici di elaborazione e/o archiviazione dati con oltre 25 addetti | C92: 92 | D92: Superficie | E92: m² | F92: 6 | G92: 300 | H92: 0.1 | U92: 92 | AB92: 0 | AC92: 0 | AD92: 0 | AE92: 0
A93: 65 | B93: Locali di spettacolo e di trattenimento in genere, impianti e centri sportivi, palestre, sia a carattere pubblico che privato, con capienza superiore a 100 persone, ovvero di superficie lorda in pianta al chiuso superiore a 200 m2. Sono escluse le manifestazioni temporanee, di qualsiasi genere, che si effettuano in locali o luoghi aperti al pubblico | C93: 93 | D93: Superficie | E93: m² | F93: 6 | G93: 1000 | H93: 0.4 | I93: Persone P | J93: =+"X =(" &O93&"P-"&P93&")/P)" -> X =(3P-200)/P) | O93: 3 | P93: 200 | Q93: Y = (3N-100)/N [curva asintotica verso 3] | U93: 93 | V93: 3 | W93: 100 | AB93: 1 | AC93: 0 | AD93: F | AE93: Persone P | AH93: Persone P
A94: 66 | B94: Alberghi, pensioni, motel, villaggi albergo, residenze turistico - alberghiere, studentati, villaggi turistici, alloggi agrituristici, ostelli per la gioventù, rifugi alpini, bed & breakfast, dormitori, case per ferie, con oltre 25 posti-letto; Strutture turistico-ricettive nell'aria aperta (campeggi, villaggi-turistici, ecc.) con capacità ricettiva superiore a 400 persone | C94: 94 | D94: Superficie | E94: m² | F94: 6 | G94: 1000 | H94: 0.4 | I94: Posti Letto PL | J94: =+"X =(" &O94&"PL-"&P94&")/PL)" -> X =(2PL-25)/PL) | O94: 2 | P94: 25 | Q94: Y = (2N-25)/N [curva asintotica verso 2] | U94: 94 | AB94: 1 | AC94: 0 | AD94: F | AE94: Posti Letto PL | AH94: Posti Letto PL
A95: 67 | B95: Scuole di ogni ordine, grado e tipo, collegi, accademie con oltre 100 persone presenti; asili nido con oltre 30 persone presenti | C95: 95 | D95: Superficie | E95: m² | F95: 4 | G95: 1000 | H95: 0.1 | I95: Persone P | J95: =+"X =(" &O95&"P-"&P95&")/P)" -> X =(3P-200)/P) | O95: 3 | P95: 200 | U95: 95 | AB95: 0 | AC95: 0 | AD95: F | AE95: Persone P | AH95: Persone P
A96: 68(*) | B96: Strutture sanitarie che erogano prestazioni in regime di ricovero ospedaliero e/o residenziale a ciclo continuativo e/o diurno, case di riposo per anziani con oltre 25 posti letto; Strutture sanitarie che erogano prestazioni di assistenza specialistica in regime ambulatoriale, ivi comprese quelle riabilitative, di diagnostica strumentale e di laboratorio, di superficie complessiva superiore a 500 m2 | C96: 96 | D96: Sup. area tipo C e D1 | E96: m² | F96: 6 | G96: 3000 | H96: 0.4 | I96: Sx - aree tipo B e/o F | J96: X = (Sx x 7)^0,5 | K96: Sy - aree tipo D2 | L96: Y = (Sy x 8)^0,5 | Q96: Per le aree di tipo C e D1 si applicano i limiti in superficie | U96: 96 | AB96: 0 | AC96: 0 | AD96: X = (Sx x 7)^0,5 | AE96: Sx - aree tipo B e/o F | AH96: Sx - aree tipo B e/o F
A97: 69 | B97: Locali adibiti ad esposizione e/o vendita all'ingrosso o al dettaglio, fiere e quartieri fieristici, con superficie lorda superiore a 400 m2 comprensiva dei servizi e depositi. Sono escluse le manifestazioni temporanee, di qualsiasi genere, che si effettuano in locali o luoghi aperti al pubblico | C97: 97 | D97: Superficie | E97: m² | F97: 6 | G97: 1000 | H97: 0.3 | I97: Vendita Ingrosso | J97: 0.8 | U97: 97 | AB97: 1 | AC97: 1 | AD97: 0.8 | AE97: Vendita Ingrosso | AH97: Vendita Ingrosso
C98: 98 | I98: Vendita Dettaglio | J98: 1 | U98: 98 | AC98: 0 | AD98: 1 | AE98: =+IF(AB98=1,I98 & CHAR(10) & "",I98) -> Vendita Dettaglio | AH98: Vendita Dettaglio
A99: 70 | B99: Locali adibiti a depositi di superficie lorda superiore a 1000 m2 con quantitativi di merci e materiali combustibili superiori complessivamente a 5000 kg | C99: 99 | D99: Superficie | E99: m² | F99: 4 | G99: 1000 | H99: 0.1 | I99: massa [t] Q | J99: =+"X =(" &O99&"Q-"&P99&")/Q)" -> X =(2Q-5)/Q) | O99: 2 | P99: 5 | Q99: Y = (2Q-5)/Q [curva asintotica verso 2] | U99: 99 | AB99: 1 | AC99: 0 | AD99: F | AE99: massa [t] Q | AH99: massa [t] Q
A100: 71 | B100: Aziende ed uffici con oltre 300 persone presenti | C100: 100 | D100: Superficie | E100: m² | F100: 6 | G100: 1000 | H100: 0.4 | I100: Persone P | J100: =+"X =(" &O100&"P-"&P100&")/P)" -> X =(3P-600)/P) | O100: 3 | P100: 600 | Q100: Y = (3N-300)/N [curva asintotica verso 3] | U100: 100 | AB100: 1 | AC100: 0 | AD100: F | AE100: Persone P | AH100: Persone P
A101: 72 | B101: Edifici sottoposti a tutela ai sensi del D.Lgs. 22 gennaio 2004, n. 42 destinati a contenere biblioteche ed archivi, musei, gallerie, esposizioni e mostre, nonché qualsiasi altra attività contenuta nel presente Allegato indipendentemente dal numero di attività costituenti e dalla relativa diversa titolarità | C101: 101 | D101: Superficie | E101: m² | F101: 8 | G101: 1000 | H101: 0.3 | I101: Bibblioteche, musei e simili | J101: 1 | Q101: Se le attività all'interno sono già soggette si aumenta solo di un 30% | U101: 101 | AB101: 0 | AC101: 0 | AD101: 1 | AE101: Bibblioteche, musei e simili | AH101: Bibblioteche, musei e simili
C102: 102 | I102: Altre attività soggette | J102: 0.3 | U102: 102 | AA102: =+(3920*6)^0.5 -> 153.3623161 | AB102: 0 | AC102: 0 | AD102: 0.3 | AE102: Altre attività soggette | AH102: Altre attività soggette
A103: 73 | B103: Edifici e/o complessi edilizi a uso terziario e/o industriale caratterizzati da promiscuità strutturale e/o dei sistemi delle vie di esodo e/o impiantistica con presenza di persone superiore a 300 unità, ovvero di superficie complessiva superiore a 5000 m2, indipendentemente dal numero di attività costituenti e dalla relativa diversa titolarità | C103: 103 | D103: Superficie | E103: m² | F103: 4 | G103: 1500 | H103: 0.1 | I103: Attività interne non soggette | J103: 1 | Q103: Se le attività all'interno sono già soggette si aumenta solo di un 20% | U103: 103 | AB103: 0 | AC103: 0 | AD103: 1 | AE103: Attività interne non soggette | AH103: Attività interne non soggette
C104: 104 | I104: Attività interne soggette | J104: 0.2 | U104: 104 | Z104: 8000 | AA104: =+Z104^0.5 -> 89.4427191 | AB104: 0 | AC104: 0 | AD104: 0.2 | AE104: Attività interne soggette | AH104: Attività interne soggette
A105: 74 | B105: Impianti per la produzione di calore alimentati a combustibile solido, liquido o gassoso con potenzialità superiore a 116 kW | C105: 105 | D105: Potenza | E105: kW | F105: 4 | U105: 105 | Z105: =1200*7 -> 8400 | AA105: =+Z105^0.5 -> 91.6515139 | AB105: 0 | AC105: 0 | AD105: 0 | AE105: 0
A106: 75 | B106: Autorimesse pubbliche e private, parcheggi pluriplano e meccanizzati di superficie complessiva superiore a 300 m2; locali adibiti al ricovero di natanti ed aeromobili di superficie superiore a 500 m2; depositi di mezzi rotabili al chiuso (treni, tram ecc.) di superficie superiore a 1000 m2 | C106: 106 | D106: Superficie | E106: m² | F106: 6 | G106: 1000 | H106: 0.4 | I106: Numero di Piani Interrati PI | J106: =+"X =(" &O106&"PI-"&P106&")/PI)" -> X =(2PI-0,8)/PI) | K106: Automobili | L106: 1 | O106: 2 | P106: 0.8 | Q106: Y = (2P-1)/P [curva asintotica verso 2] | U106: 106 | AA106: =+AA105+AA104+AA102 -> 334.4565491 | AB106: 1 | AC106: 0 | AD106: F | AE106: Numero di Piani Interrati PI | AH106: Numero di Piani Interrati PI
C107: 107 | K107: Rotabili | L107: 0.6 | U107: 107 | AB107: 1 | AC107: 0 | AD107: 0
A108: 76 | B108: Tipografie, litografie, stampa in offset ed attività similari con oltre cinque addett | C108: 108 | D108: Superficie | E108: m² | F108: 6 | G108: 1000 | H108: 0.1 | U108: 108 | AB108: 0 | AC108: 0 | AD108: 0 | AE108: 0
A109: 77 | B109: Edifici destinati ad uso civile, con altezza antincendio superiore a 24 m | C109: 109 | D109: Altezza | E109: m | F109: 6 | G109: 60 | H109: 0.3 | I109: Numero Scale SC | J109: =+"X =(" &O109&"SC-"&P109&")/SC)" -> X =(2SC-1)/SC) | O109: 2 | P109: 1 | Q109: Y = (2P-1)/P [curva asintotica verso 2] | U109: 109 | AB109: 1 | AC109: 0 | AD109: F | AE109: Numero Scale SC | AH109: Numero Scale SC
A110: 78 | B110: Aerostazioni, stazioni ferroviarie, stazioni marittime, con superficie coperta accessibile al pubblico superiore a 5000 m2; metropolitane in tutto o in parte sotterranee | C110: 110 | D110: Superficie (per aerostazioni, stazioni ecc) | E110: m² | F110: 8 | G110: 5000 | H110: 0.4 | I110: Aerostazione | J110: 3 | U110: 110 | AB110: 0 | AC110: 0 | AD110: 3 | AE110: Aerostazione | AH110: Aerostazione
C111: 111 | D111: N. fermate metropolitane | E111: n | F111: 40000 | I111: Stazione Ferroviaria | J111: 1 | U111: 111 | AB111: 0 | AC111: 0 | AD111: 1 | AE111: Stazione Ferroviaria | AH111: Stazione Ferroviaria
A112: 79 | B112: Interporti con superficie superiore a 20.000 m² | C112: 112 | D112: Superficie | E112: m² | F112: 4 | G112: 50000 | H112: 0.1 | U112: 112 | AB112: 0 | AC112: 0 | AD112: 0 | AE112: 0
A113: 80 | B113: Gallerie stradali di lunghezza superiore a 500 m e ferroviarie superiori a 2000 | C113: 113 | D113: Lunghezza | E113: m | F113: 100 | I113: Autostradale | J113: 3 | U113: =+C113 -> 113 | AB113: 0 | AC113: 0 | AD113: 3 | AE113: Autostradale | AH113: Autostradale
C114: 114 | I114: Ferroviaria | J114: 1 | U114: =+C114 -> 114 | AB114: 0 | AC114: 0 | AD114: 1 | AE114: Ferroviaria | AH114: Ferroviaria
C115: 115

Sheet Foglio1 (hidden)
A1: 4 | B1: =+A1*60 -> 240 | D1: 720 | E1: =+D1-$B$3 -> 240
B2: 720 | D2: 780 | E2: =+D2-$B$3 -> 300
B3: =+B2-B1 -> 480 | D3: 1320 | E3: 840 | L3: =184/34 -> 5.411764706
D4: 1680 | E4: 1200
D5: 1740 | E5: 1260 | L5: =34/184 -> 0.1847826087
D6: 1860 | E6: 1380
D7: 2520 | E7: 2040 | L7: =16/114 -> 0.1403508772
D8: 4440 | E8: 3960
I9: 2 | J9: 3
I10: 2 | J10: 4
A12: =+SQRT(1890) -> 43.47413024 | B12: =+A12/30 -> 1.449137675 | C12: 3 | D12: =+C12*60 -> 180
B13: =+B12*60 -> 86.94826048
N15: 16 | O15: =+N15/N16 -> 62.77463905
K16: 1.18 | L16: 0.18 | M16: 1.2 | N16: =+K16*L16*M16 -> 0.25488
D19: =0.5*0.18*1.2 -> 0.108 | F19: 22 | G19: =+F19/0.1 -> 220
D20: =0.5*22 -> 11 | F20: 22
D23: 0.8 | E23: =+D23*50 -> 40 | F23: 22 | G23: =+F23/0.8 -> 27.5
J25: =27+63 -> 90 | O25: 240 | P25: 180 | Q25: 126 | R25: =+SUM(O25:Q25) -> 546
D26: 1.18 | E26: 0.18 | F26: 0.45 | G26: =+D26*E26*F26 -> 0.09558
H27: 16 | I27: =+H27/H28 -> 30.13182674
H28: =1.18*0.45 -> 0.531 | R28: =0.6-0.15 -> 0.45

Sheet FOGLIO CALCOLI (2) (hidden)
E1: PARAMETRI
A2: Attività | B2: Descrizione | C2: Sottotipo | D2: Un.Mis | E2: Principale [S] | F2: Agg. 1 (X) | G2: Valore | H2: Agg. 2 (Y) | I2: Valore | J2: Totale | X2: rif.RigaIn | Y2: Rif.RigaFin | Z2: Ind.Sottotipo | AA2: Fatt. Corr | AB2: Par.Agg1 | AC2: Par.X | AD2: Par.Agg2 | AE2: Par.Y | AF2: Limite | AG2: Eccedenza | AH2: PAR X | AI2: PAR Y | AJ2: Par. Princ | AK2: PER ATT. 68
A3: 4 | B3: =+VLOOKUP($A3,TabAtt,2,FALSE) -> Depositi di gas infiammabili in serbatoi fissi: compressi per capacità geometrica complessiva superiore o uguale a 0, 75 m3; disciolti o liquefatti per capacità geometrica complessiva superiore o uguale a 0,3 m3 | C3: Volume | D3: =+VLOOKUP(C3,INDIRECT(ADDRESS(X3,4,1,,"PARAMETRI ATTIVITA") & ":" & +ADDRESS(X3+5,12,1,,)),2,FALSE) -> m³ | E3: 1000 | F3: Solo Deposito | G3: 1 | H3: Non Def. | I3: 0 | J3: =IF(AF3=0,+SQRT(AJ3*AA3)*AC3*AE3,IF(AJ3-AF3<0,+SQRT((AJ3+AK3)*AA3)*AC3*AE3,SQRT((AF3+AK3+(AJ3-AF3)*AG3)*AA3))*AC3*AE3) -> 289.8275349 | X3: =+VLOOKUP($A3,TabAtt,3,FALSE) -> 8 | Y3: =+VLOOKUP($A3+1,TabAtt,3,FALSE)-X3 -> 2 | Z3: =+ADDRESS(X3,4,1,,"PARAMETRI ATTIVITA") -> 'PARAMETRI ATTIVITA'!$D$8 | AA3: =+VLOOKUP(C3,INDIRECT(ADDRESS(X3,4,1,,"PARAMETRI ATTIVITA") & ":" & +ADDRESS(X3+5,12,1,,)),3,FALSE) -> 300 | AB3: =+ADDRESS(X3,7,1,,"PARAMETRI ATTIVITA") -> 'PARAMETRI ATTIVITA'!$G$8 | AC3: =+IF(AM3="F",IF((G3*AH3-AI3)/G3<0,1,(G3*AH3-AI3)/G3),AM3) -> 1 | AD3: =+ADDRESS(X3,9,1,,"PARAMETRI ATTIVITA") -> 'PARAMETRI ATTIVITA'!$I$8 | AE3: =++IF(A3=68,1,VLOOKUP(H3,INDIRECT(ADDRESS(X3,9,1,,"PARAMETRI ATTIVITA") & ":" & +ADDRESS(X3+5,108,1,,)),2,FALSE)) -> 1 | AF3: =+VLOOKUP(C3,INDIRECT(ADDRESS(X3,4,1,,"PARAMETRI ATTIVITA") & ":" & +ADDRESS(X3+5,12,1,,)),8,FALSE) -> 200 | AG3: =+VLOOKUP(C3,INDIRECT(ADDRESS(X3,4,1,,"PARAMETRI ATTIVITA") & ":" & +ADDRESS(X3+5,12,1,,)),9,FALSE) -> 0.1 | AH3: =+IF(ISERROR(VLOOKUP($A3,TabAtt,13,FALSE))=FALSE,VLOOKUP($A3,TabAtt,13,FALSE),1) -> 0 | AI3: =+IF(ISERROR(VLOOKUP($A3,TabAtt,14,FALSE))=FALSE,VLOOKUP($A3,TabAtt,14,FALSE),1) -> 0 | AJ3: =+E3 -> 1000 | AK3: =+IF(A3=68,G3*VLOOKUP(F3,INDIRECT(ADDRESS(X3,7,1,,"PARAMETRI ATTIVITA") & ":" & +ADDRESS(X3+5,8,1,,)),2,FALSE)+I3*VLOOKUP(H3,INDIRECT(ADDRESS(X3,9,1,,"PARAMETRI ATTIVITA") & ":" & +ADDRESS(X3+5,108,1,,)),2,FALSE),0) -> 0 | AM3: =+IF(A3=68,1,VLOOKUP(F3,INDIRECT(ADDRESS(X3,7,1,,"PARAMETRI ATTIVITA") & ":" & +ADDRESS(X3+5,8,1,,)),2,FALSE)) -> 1
D4: =+"Limite superiore ["& D3 & "] =" -> Limite superiore [m³] = | E4: =+INDIRECT(ADDRESS(X3,11,1,,"PARAMETRI ATTIVITA")) -> 200 | F4: Note = | G4: =+INDIRECT(ADDRESS(X3,15,1,,"PARAMETRI ATTIVITA")) -> 0 | Z4: =+ADDRESS(X3,4,1,,"PARAMETRI ATTIVITA") & ":" & +ADDRESS(X3+5,12,1,,) -> 'PARAMETRI ATTIVITA'!$D$8:$L$13
D5: =+"Calcolo dell'eccedenza dei ["& D3 & "] =" -> Calcolo dell'eccedenza dei [m³] = | E5: =+INDIRECT(ADDRESS(X3,12,1,,"PARAMETRI ATTIVITA")) -> 0.1 | F5: Valore Parametro X = | G5: =+AC3 -> 1 | H5: Valore Parametro Y = | I5: =+AE3 -> 1
D6: Fattore K applicato: | E6: =+AA3 -> 300
AH8: =+ISERROR(VLOOKUP($A3,TabAtt,13,FALSE)) -> FALSE
A9: INSERISCI | C9: INSERISCI | E9: INSERISCI | F9: CONTROLLA | H9: CONTROLLA | J9: SE X o Y NON ESISTONO | Z9: =+IF(E4>0,IF((E3-E4)>0,"(" & E4 & " + "&E3-E4&" x " & E5 &")x" & E6,E3 & "x " & E6),E3) -> (200 + 800 x 0,1)x300 | AA9: =+IF(F3="non def.",""," x" &TEXT(G5,"#0,00")) -> x1,00 | AB9: =+IF(H3="non def.",""," x" & TEXT(I5,"#0,00")) -> 
A10: ATTIVITA' | C10: SOTTOTIPO | E10: QUANTITA' | F10: SE ESISTE X | H10: SE ESISTE Y | J10: SELEZIONA NON DEF.
C11: ="Formula = [SxK]^0,5 " & IF(AA9 = "",""," x X") & IF(AB9="",""," x Y") & " = " & " [" & Z9 &"]^0,5" & TEXT(AA9,"#0.00") & TEXT(AB9,"#0.00") & "= " & TEXT(J3,"#.0,00") -> Formula = [SxK]^0,5 x X = [(200 + 800 x 0,1)x300]^0,5 x1,00= 289,83 | AC11: nof | AD11: der | AE11: fse
Z12: Non Normato | AA12: 1.2 | AB12: si | AC12: 1.2 | AD12: 1.5 | AE12: 2
Z13: normata da regola tecnica prescrittiva | AA13: 1 | AB13: no | AC13: 1 | AD13: 1 | AE13: 1
Z14: DM 2015 | AA14: 1.5
C15: Parametro Attività | D15: Normato? | E15: NOF? | F15: DER? | G15: FSE? | H15: Costo Orario
C16: =+J3 -> 289.8275349 | D16: normata da regola tecnica prescrittiva | E16: no | F16: no | G16: no | H16: 50 | AA16: =+VLOOKUP(D16,Z12:AA14,2,FALSE) -> 1 | AB16: =+VLOOKUP(E16,$AB$12:$AE$13,2,FALSE) -> 1 | AC16: =+VLOOKUP(F16,$AB$12:$AE$13,3,FALSE) -> 1 | AD16: =+VLOOKUP(G16,$AB$12:$AE$13,4,FALSE) -> 1
B19: 7
D20: Compenso = | E20: =+C16*H16*PRODUCT(AA16:AD16) -> 14491.37675

Sheet Foglio2
